Cogmind - Beta 17.1 @@@ ROGUE MODE // 2026.09.20 @ 01:37:37 Player: C0-2MO Result: Escaped! Performance ------------- Evolutions (9) 4500 Regions Visited (35) 7000 Robots Destroyed (588) 2940 Value Destroyed (29826) 29826 Prototype IDs (79) 1580 Alien Tech Used (10) 2000 Bonus (41086) 41086 TOTAL SCORE: 88932 Bonus ------- Triggered High Security 1000 High Alert Combat Kills 13738 Follower Combat Kills 891 Hunted by Unchained 500 Entered Garrisons 1000 Met Imprinter 300 Acquired ECA 300 Met Zhirov 300 Met Warlord at Base 500 MAIN.C Attacked Warlord 500 MAIN.C Attacked Proxy Base 500 Met Warlord at Research 2000 Invited to Help at Command 2000 Scanned by Researcher 500 Met Sigix 2000 Destroyed MAIN.C Guards 500 Met MAIN.C 5000 Destroyed MAIN.C Shell 5000 Met Warlord at Command 2000 Win 3000 Friendly Fire -443 Cogmind --------- Core Integrity 575/1600 Matter 279/300 Energy 595/600 System Corruption 0% +Membrane Temperature Cool (-194) Movement Flying (19) Location To Epsilon Eridani Parts ------- > --- POWER (3) -------- Matter Drive > --- PROPULSION (12) -- Combat Linear Gravjet Experimental Cesium-ion Thruster Experimental Q-thruster > --- UTILITY (4) ------ Advanced Cryofiber Web Spectral Analyzer > --- WEAPON (6) ------- Heavy Quantum Rifle > --- INVENTORY (5) ---- Zero-point Reactor Experimental Force Field Guided Micro-nuke Launcher Peak State ------------ > --- POWER ------------ Cooled Fission Core Graviton Reactor Light Quantum Reactor > --- PROPULSION ------- Xenon Bombardment Thruster Cooled Nuclear Pulse Thruster Cooled Nuclear Pulse Thruster Experimental Cesium-ion Thruster Impulse Thruster Diametric Drive Q-thruster Electron Diverter Improved Diametric Drive Improved Diametric Drive Improved Q-thruster Experimental Q-thruster > --- UTILITY ---------- Advanced Cryofiber Web Experimental Heat Sink Experimental Heat Sink Spectral Analyzer > --- WEAPON ----------- Sigix Sheargun Sigix Sheargun Sigix Sheargun Long-range Phase Cannon Enhanced Hardcell Cannon Fusion Bomb Launcher > --- INVENTORY -------- Light Antimatter Reactor Matter Drive Improved Propulsion Shielding Hacking Drone Bay Long-range Missile Launcher [Rating: 211] Favorites ----------- Power Light Nuclear Core Engine Light Angular Momentum Engine Power Core Light Nuclear Core Reactor Light Quantum Reactor Propulsion Surge Thruster Treads Light Treads Hover Unit Improved Linear Gravjet Flight Unit Surge Thruster Utility Improved Propulsion Shielding Device Experimental Heat Sink Storage Large Storage Unit Processor Advanced Visual Processing Unit Hackware Hacking Suite Protection Improved Propulsion Shielding Weapon Sigix Sheargun Energy Gun Sigix Sheargun Energy Cannon Enhanced Nova Cannon Ballistic Gun Hypervelocity Railgun Ballistic Cannon Assault Cannon Launcher Long-range Missile Launcher Special Weapon Improved Remote Datajack Impact Weapon Heavy Flail Slashing Weapon Greatsword Piercing Weapon Heavy Pick Special Melee Weapon Improved Datajack Build | -11 -10 -10 -9 -9 -8 -8 -8 -8 -7 -7 -7 -7 -7 -7 -6 -6 -6 -5 -5 -5 -5 -4 -4 -4 -4 -4 -3 -3 -3 -2 -2 -2 -2 -1 -1 ------- Run | Yrd Mat Min Mat Min Mat Gar Mat Gar Fac Gar Fac Low Low Zio Pro Fac Gar Fac Upp Upp Zhi Pro Fac Upp Upp War Pro Res Tes Res Qua Sec Gar Acc Com Slots Evolved 18 | . . . 2 . 2 . . . 2 . . . . . . 2 . 2 . . . . 2 . . . . 2 . 2 . . . 2 . Power 2 | . . . . . . . . . . . . . . . . 1 . . . . . . 1 . . . . . . . . . . . . Propulsion 10 | . . . 2 . 1 . . . 1 . . . . . . 1 . 2 . . . . . . . . . 1 . 2 . . . . . Utility 2 | . . . . . 1 . . . 1 . . . . . . . . . . . . . . . . . . . . . . . . . . Weapon 4 | . . . . . . . . . . . . . . . . . . . . . . . 1 . . . . 1 . . . . . 2 . Parts Attached 339 | 4 15 4 29 2 22 8 11 . 8 6 11 5 1 3 . 23 10 7 1 1 6 4 8 . . 8 . 3 4 15 23 9 4 52 32 Power 60 | . 2 . 5 . 5 2 4 . 1 . 2 1 . . . 2 3 3 . . 1 1 1 . . 1 . . . . 6 1 1 13 5 Engine 22 | . 2 . 5 . 4 2 1 . . . 1 . . . . 2 2 1 . . . . . . . . . . . . 1 . . . 1 Core 16 | . . . . . 1 . 3 . 1 . 1 1 . . . . 1 2 . . . 1 1 . . . . . . . 2 . . 2 . Reactor 22 | . . . . . . . . . . . . . . . . . . . . . 1 . . . . 1 . . . . 3 1 1 11 4 Propulsion 88 | 2 3 3 11 1 3 2 1 . 2 2 3 2 . . . 5 . 3 . . 3 . 1 . . . . 2 2 2 5 1 3 13 13 Treads 4 | 2 . . . . . . . . . . . . . . . . . . . . . . . . . . . . . 1 . . . . 1 Leg . | . . . . . . . . . . . . . . . . . . . . . . . . . . . . . . . . . . . . Wheel . | . . . . . . . . . . . . . . . . . . . . . . . . . . . . . . . . . . . . Hover 2 | . . . . . . . . . . . . . . . . . . . . . . . . . . . . . . . . . . . 2 Flight 82 | . 3 3 11 1 3 2 1 . 2 2 3 2 . . . 5 . 3 . . 3 . 1 . . . . 2 2 1 5 1 3 13 10 Utility 90 | 1 3 . 4 1 5 2 3 . 4 3 5 1 1 3 . 10 5 . 1 1 2 2 5 . . 4 . 1 . 5 5 1 . 3 9 Device 44 | 1 . . . . 2 . 1 . 3 2 . 1 . 1 . 6 3 . 1 . 1 1 3 . . 2 . 1 . 1 4 1 . 3 6 Storage 5 | . . . . . . . . . . . 1 . . . . . 1 . . . 1 . . . . 1 . . . 1 . . . . . Processor 9 | . 1 . . . 1 . . . . . . . . . . 1 . . . 1 . 1 1 . . 1 . . . 1 . . . . 1 Hackware 9 | . 1 . 1 . 1 . . . . . 3 . . . . 1 . . . . . . 1 . . . . . . 1 . . . . . Protection 23 | . 1 . 3 1 1 2 2 . 1 1 1 . 1 2 . 2 1 . . . . . . . . . . . . 1 1 . . . 2 Artifact . | . . . . . . . . . . . . . . . . . . . . . . . . . . . . . . . . . . . . Weapon 101 | 1 7 1 9 . 9 2 3 . 1 1 1 1 . . . 6 2 1 . . . 1 1 . . 3 . . 2 8 7 6 . 23 5 Energy Gun 18 | . . . 5 . . . . . . . . . . . . . . . . . . . . . . 2 . . . 2 . 3 . 5 1 Energy Cannon 12 | . . . 1 . . . . . . . . . . . . . . . . . . . . . . . . . 1 2 1 1 . 6 . Ballistic Gun 21 | 1 3 1 . . 3 1 1 . . . . . . . . . . . . . . . . . . . . . . 2 3 1 . 5 . Ballistic Cannon 20 | . 3 . 2 . 1 . 2 . 1 1 . . . . . 2 1 . . . . . . . . . . . . . 2 1 . 2 2 Launcher 11 | . . . 1 . 1 . . . . . . 1 . . . . . . . . . . . . . 1 . . 1 1 . . . 3 2 Special Weapon 2 | . . . . . . . . . . . . . . . . . . . . . . 1 . . . . . . . 1 . . . . . Impact Weapon 1 | . . . . . 1 . . . . . . . . . . . . . . . . . . . . . . . . . . . . . . Slashing Weapon 11 | . 1 . . . 1 . . . . . 1 . . . . 4 . 1 . . . . 1 . . . . . . . 1 . . 1 . Piercing Weapon 4 | . . . . . 2 1 . . . . . . . . . . . . . . . . . . . . . . . . . . . 1 . Special Melee Weapon 1 | . . . . . . . . . . . . . . . . . 1 . . . . . . . . . . . . . . . . . . Unidentified Prototypes 67 | . . . 4 . 1 . . . 1 . 1 . . 1 1 4 . 1 . . 5 . 1 . . 8 . . 4 3 7 10 . 4 11 Corrupted Parts 2 | . . . 2 . . . . . . . . . . . . . . . . . . . . . . . . . . . . . . . . System Corruption 6 | . . . 6 . . . . . . . . . . . . . . . . . . . . . . . . . . . . . . . . Parts Lost 86 | . 3 . 5 . 2 3 3 . . 2 4 . . . . . . . . . . . . . . . . . . . 4 1 2 24 33 Power 14 | . 1 . 1 . 1 1 . . . . . . . . . . . . . . . . . . . . . . . . 1 . . 4 5 Propulsion 37 | . 1 . 4 . . 2 . . . . 3 . . . . . . . . . . . . . . . . . . . 1 . 2 9 15 Utility 13 | . 1 . . . . . 2 . . 2 1 . . . . . . . . . . . . . . . . . . . . . . 1 6 Weapon 22 | . . . . . 1 . 1 . . . . . . . . . . . . . . . . . . . . . . . 2 1 . 10 7 Highest Loss Streak 15 | . 2 . 3 . 1 2 1 . . 1 3 . . . . . . . . . . . . . . . . . . . 1 1 1 8 15 To Critical Strikes 1 | . . . . . . . . . . . . . . . . . . . . . . . . . . . . . . . . . . . 1 Average Backups 4 | . 3 5 4 4 4 4 5 5 4 4 4 4 5 5 5 4 5 4 5 5 5 4 4 5 5 4 4 4 5 4 4 4 4 4 3 Power . | . . . . . . . . 1 1 1 . . . . . . . . . . . . . . . . 1 1 . . . . . . . Propulsion . | . . . . 2 1 . . . . . . . 1 1 1 . . . . . . . . . . . . . 1 . . . . . . Utility 2 | . . . 2 1 2 2 2 2 1 . 2 3 3 3 3 3 4 3 4 4 4 3 3 4 4 3 2 2 2 3 2 1 2 . . Weapon 1 | . 2 3 1 1 1 2 2 2 2 3 2 1 1 1 1 . 1 1 1 1 1 1 1 1 1 1 1 1 1 1 1 1 1 2 1 Tool/Special . | . . . . . . . . . . . . . . . . . . . . . . . . . . . . . . . . . . . . Unused Backups 7 | . . 1 . . . . . . . . 1 . . . . 2 . . . . . 1 . . . . . . . . 1 . . 1 . Power . | . . . . . . . . . . . . . . . . . . . . . . . . . . . . . . . . . . . . Propulsion 1 | . . . . . . . . . . . . . . . . . . . . . . . . . . . . . . . . . . 1 . Utility 3 | . . . . . . . . . . . . . . . . 2 . . . . . 1 . . . . . . . . . . . . . Weapon 2 | . . 1 . . . . . . . . 1 . . . . . . . . . . . . . . . . . . . . . . . . Tool/Special 1 | . . . . . . . . . . . . . . . . . . . . . . . . . . . . . . . 1 . . . . Average Slot Usage (%) 93 | . 81 100 94 98 99 99 97 100 92 93 87 92 92 92 92 98 99 92 94 94 94 93 91 94 94 91 94 80 80 89 95 98 98 88 63 Engine 3 | . 8 14 10 11 3 6 2 . . . 2 . . . . 5 6 7 . . . . . . . . . . . . 2 . . . . Core 4 | . . . . . 5 2 6 9 7 7 4 7 7 7 7 6 6 2 11 11 8 5 7 10 10 8 10 4 4 4 4 4 4 2 . Reactor 2 | . . . . . . . . . . . . . . . . . . . . . 2 5 5 5 5 4 5 4 4 4 3 7 8 9 8 Flight 44 | . 20 28 40 44 44 44 44 45 40 46 39 46 46 46 46 45 46 49 52 52 52 52 47 47 47 47 47 46 47 51 51 52 50 40 27 Device 7 | . 7 . . . 3 . . . 6 9 8 7 7 7 7 11 6 10 11 11 10 11 10 10 10 10 10 9 9 8 11 12 11 11 7 Processor 5 | . 3 14 11 . 4 9 9 9 7 7 7 7 7 7 7 6 6 5 5 5 5 5 5 5 5 5 5 4 4 4 4 4 4 4 4 Hackware 3 | . 1 . 3 11 11 9 . . . . 9 7 7 3 . 1 6 1 . . . . . . . . . . . . . . . . . Protection 5 | . 7 14 6 10 6 9 15 18 14 6 2 7 7 11 15 5 5 3 5 5 5 5 4 5 5 5 5 3 3 3 1 . 1 . 1 Energy Gun 2 | . . . 8 11 . . . . . . . . . . . . . . . . . . . . . 4 5 . . 1 . . 13 7 2 Ballistic Gun 2 | . 13 22 . . . 4 . . . . . . . . . . . . . . . . . . . . . . . 5 9 10 . 2 2 Ballistic Cannon 4 | . 5 . 8 . 6 8 8 9 6 11 2 . . . . 4 5 . . . . . . . . . . . . . 1 . . . 2 Slashing Weapon 2 | . 5 6 3 11 2 . . . . . 2 6 7 7 7 6 5 5 5 5 5 4 5 5 5 5 5 4 4 3 2 . . . 1 Piercing Weapon 2 | . . . . . 5 4 9 9 7 3 4 . . . . . . . . . . . . . . . . . . . . . . . . Peak Build Rating 211 | 4 9 8 25 26 36 35 33 33 43 48 49 46 43 49 43 72 71 88 83 82 96 97 118 113 113 125 120 135 153 176 192 200 200 211 184 Average Rating 81 | 2 6 8 14 25 34 31 32 33 37 42 42 43 43 43 42 57 70 78 82 81 89 93 107 113 113 115 120 129 133 164 176 188 190 193 134 On Entrance 77 | . 4 8 8 25 26 34 30 33 33 43 48 45 43 43 43 43 70 70 82 82 82 93 97 113 113 113 120 120 129 133 167 185 196 188 126 Avg Prop Armor Cover (%) 6 | 28 29 . . . 6 . . . . . . 2 2 2 2 3 5 8 9 9 9 9 4 . . . . . . 3 3 . 5 2 3 Naked Turns . | . . . . . . . . . . . . . . . . . . . . . . . . . . . . . . . . . . . . Heaviest Build 105 | 3 8 7 15 15 17 19 22 18 24 24 22 13 13 15 15 30 29 32 30 30 35 35 44 43 43 51 47 57 57 71 85 81 79 105 89 Greatest Support 114 | 3 8 8 20 16 25 25 25 25 29 28 36 29 22 27 23 41 47 47 59 57 51 51 51 65 65 65 51 78 80 79 95 114 108 112 99 Greatest Overweight (x) 5 | . 1 . 1 . 1 . . . . . . . . . . . . . . . . . . . . 5 . . . . . . . 1 . Average Overweight (x) . | . . . . . . . . . . . . . . . . . . . . . . . . . . . . . . . . . . . . Largest Inventory Capacity 15 | 5 5 5 5 5 5 5 5 5 5 5 5 5 5 5 5 5 15 5 5 5 5 5 5 5 5 5 5 5 5 5 5 5 5 5 5 Average Capacity 5 | 5 5 5 5 5 5 5 5 5 5 5 5 5 5 5 5 5 5 5 5 5 5 5 5 5 5 5 5 5 5 5 5 5 5 5 5 Most Carried 5 | . 5 5 5 5 5 5 5 5 5 5 5 5 5 5 5 5 5 5 5 5 5 5 5 5 5 5 5 5 5 5 5 5 5 5 5 Average Carried 4 | . 3 4 4 4 4 4 4 5 4 4 4 4 5 5 5 4 4 4 5 5 5 4 4 5 5 4 5 4 5 4 4 4 4 4 4 Final Capacity 5 | 5 5 5 5 5 5 5 5 5 5 5 5 5 5 5 5 5 5 5 5 5 5 5 5 5 5 5 5 5 5 5 5 5 5 5 5 Final Carried 5 | . 5 5 5 5 5 5 5 5 5 5 5 5 5 5 5 5 5 5 5 5 5 5 5 5 5 5 5 5 5 5 5 5 5 5 5 Class Distribution -------------------- 30% | Scientist-Sprinter 27% | Sprinter 19% | Scavenger-Sprinter 9% | Machinist-Sprinter 4% | Scavenger-Mutant 3% | Hacker-Sprinter Dominant Class ---------------- Scavenger-Mutant | -10/Materials Scavenger-Mutant | -10/Mines Scavenger-Sprinter | -9/Materials Commander-Sprinter | -9/Mines Scientist-Sprinter | -8/Materials Scientist-Sprinter | -8/Garrison Scientist-Sprinter | -8/Materials Scientist-Sprinter | -8/Garrison Scientist-Sprinter | -7/Factory Sprinter | -7/Garrison Sprinter | -7/Factory Scientist-Sprinter | -7/Lower Caves Scientist-Sprinter | -7/Lower Caves Scientist-Sprinter | -7/Zion Scientist-Sprinter | -6/Proximity Caves Scientist-Sprinter | -6/Factory Sprinter | -6/Garrison Scientist-Sprinter | -5/Factory Machinist-Sprinter | -5/Upper Caves Machinist-Sprinter | -5/Upper Caves Machinist-Sprinter | -5/Zhirov Sprinter | -4/Proximity Caves Sprinter | -4/Factory Sprinter | -4/Upper Caves Sprinter | -4/Upper Caves Machinist-Sprinter | -4/Warlord Machinist-Sprinter | -3/Proximity Caves Machinist-Sprinter | -3/Research Machinist-Sprinter | -3/Testing Machinist-Sprinter | -2/Research Sprinter | -2/Quarantine Sprinter | -2/Section 7 Scavenger-Sprinter | -2/Garrison Scavenger-Sprinter | -1/Access Scavenger-Sprinter | -1/Command Resources | -11 -10 -10 -9 -9 -8 -8 -8 -8 -7 -7 -7 -7 -7 -7 -6 -6 -6 -5 -5 -5 -5 -4 -4 -4 -4 -4 -3 -3 -3 -2 -2 -2 -2 -1 -1 ----------- Run | Yrd Mat Min Mat Min Mat Gar Mat Gar Fac Gar Fac Low Low Zio Pro Fac Gar Fac Upp Upp Zhi Pro Fac Upp Upp War Pro Res Tes Res Qua Sec Gar Acc Com Matter Collected 17133 | 288 825 58 845 20 1739 802 895 . 430 856 140 94 10 20 40 628 716 190 50 20 100 84 291 40 5 160 . 80 31 1655 1700 948 721 1904 748 Remotely . | . . . . . . . . . . . . . . . . . . . . . . . . . . . . . . . . . . . . Salvage Created 24948 | 101 821 33 1556 . 2636 668 1274 . 517 703 317 45 . . 14 646 585 255 . . 243 88 501 . . . . 40 31 3140 1287 997 2120 5230 1100 Parts 1237 | 6 57 4 104 . 143 38 70 . 23 34 20 8 . . . 46 33 22 . . 1 2 9 . . . . 3 . 132 103 56 90 193 40 Haulers Intercepted 36 | . 2 . 6 . 5 . 5 . . . 3 . . . . 1 . 1 . . . . 2 . . . . . . 6 . 1 . 4 . Recyclers Shooed 10 | . . . 1 . 3 . 1 . . . 1 . . . . . . . . . . . . . . . . . . 1 . 1 . 1 1 Parts Field Recycled . | . . . . . . . . . . . . . . . . . . . . . . . . . . . . . . . . . . . . Retrieved Matter . | . . . . . . . . . . . . . . . . . . . . . . . . . . . . . . . . . . . . Parts Self-Destructed 29 | . . . . . . . . . . . . 6 1 . 4 . . . . 1 . 17 . . . . . . . . . . . . . Prevented 48 | . . . . . . . . . . . . . 1 . . . . . . . . 47 . . . . . . . . . . . . . Parts Restored . | . . . . . . . . . . . . . . . . . . . . . . . . . . . . . . . . . . . . Kills | -11 -10 -10 -9 -9 -8 -8 -8 -8 -7 -7 -7 -7 -7 -7 -6 -6 -6 -5 -5 -5 -5 -4 -4 -4 -4 -4 -3 -3 -3 -2 -2 -2 -2 -1 -1 ------- Run | Yrd Mat Min Mat Min Mat Gar Mat Gar Fac Gar Fac Low Low Zio Pro Fac Gar Fac Upp Upp Zhi Pro Fac Upp Upp War Pro Res Tes Res Qua Sec Gar Acc Com Combat Hostiles Destroyed 413 | . 20 3 29 . 44 18 24 . 9 19 1 3 . . 2 14 12 . . . . . . . . . . . . 26 14 12 36 91 36 Melee 17 | . . . . . 3 . 6 . . . 1 . . . 2 . 3 . . . . . . . . . . . . . 1 . . . 1 Guns 109 | . 8 3 6 . 5 9 . . . . . . . . . . . . . . . . . . . . . . . 19 13 8 16 22 . Cannons 105 | . 12 . 17 . 19 6 15 . 6 8 . . . . . 1 5 . . . . . . . . . . . . . . . 1 13 2 AOE 173 | . . . 5 . 16 3 3 . 3 11 . 3 . . . 13 4 . . . . . . . . . . . . 6 . 4 19 50 33 Classes Destroyed 22 | 2 6 . 4 . 3 . . . 1 . 1 . . . . . 1 . . . . . . . . . . . . . . 1 . 3 . Worker 33 | . 2 . 1 . 4 . 1 . . . . . . . . 9 . . . . . . . . . . . . . 3 . 1 . 9 3 Builder 20 | . . . 1 . 7 . 3 . . . . . . . . 2 . 1 . . . . . . . . . . . . . 1 . 5 . Tunneler 5 | 1 . . . . 3 . . . . . . . . . . . . . . . . . . . . . . . . . . . . 1 . Hauler 36 | . 2 . 6 . 5 . 5 . . . 3 . . . . 1 . 1 . . . . 2 . . . . . . 6 . 1 . 4 . Recycler 19 | 1 1 . 3 . 3 . 1 . 3 . 2 . . . . . . . . . . . 2 . . . . . . . . . . 2 1 Mechanic 4 | . 1 . . . 1 . . . . . . . . . . 1 . 1 . . . . . . . . . . . . . . . . . Operator 15 | . 1 . 1 . 2 . 1 . 1 . 2 . . . . . . 2 . . . . 1 . . . . . . 3 . . . 1 . Drone 3 | . . . . . . . . . . . 1 . . . 2 . . . . . . . . . . . . . . . . . . . . Watcher 40 | . . . 4 . 4 . 3 . 2 1 . . . . . 3 . 2 . . . . 1 . . . . 1 1 7 3 1 . 6 1 Swarmer 134 | . 6 3 10 . 5 4 3 . 3 11 . 3 . . . 13 5 . . . . . . . . . . . . 4 . 5 15 26 18 Cutter 6 | . . . . . 3 . . . . . . . . . . . . . . . . . . . . . . . . . . . . 3 . Saboteur 4 | . . . . . . . . . . . . . . . . . . . . . . . . . . . . . . . . . . 3 1 Grunt 146 | . 14 . 12 . 22 6 11 . 3 5 . . . . . 1 6 . . . . . . . . . . . . 11 6 6 9 29 5 Brawler 9 | . . . 1 . . 3 . . . . . . . . . . . . . . . . . . . . . . . . . . 1 3 1 Duelist 10 | . . . . . 3 . . . . . . . . . . . . . . . . . . . . . . . . 1 . . 1 4 1 Protector 3 | . . . . . . . . . . . . . . . . . . . . . . . . . . . . . . . . . . 1 2 Researcher 1 | . . . . . . . . . . . . . . . . . . . . . . . . . . . . . . . . 1 . . . Sentry 61 | . . . 6 . 9 5 9 . 2 3 . . . . . . . . . . . . . . . . . . . 9 . 1 7 9 1 Hunter 14 | . . . . . 2 . 1 . . . . . . . . . . . . . . . . . . . . . . . . . . 7 4 Programmer 11 | . . . . . . . . . 1 . . . . . . . . . . . . . . . . . . . . 1 . . 2 5 2 Heavy 1 | . . . . . . . . . . . . . . . . . . . . . . . . . . . . . . . . . . 1 . Behemoth 2 | . . . . . . . . . . . . . . . . . 1 . . . . . . . . . . . . . . . 1 . . Quarantine Guard 8 | . . . . . . . . . . . . . . . . . . . . . . . . . . . . . . . 8 . . . . Investigator 2 | . . . . . . . . . . . . . . . . . . . . . . . . . . . . . . . . . . 2 . Thug 1 | . . . . . . . . . . . . . . . . . . . . . . . . . . . . . . . . . . . 1 Butcher 1 | . . . . . . . . . . . . . . . . . . . . . . . . . . . . . . . . . . . 1 Best Kill Streak 24 | 2 5 3 8 . 10 4 7 . 5 5 2 3 . . 1 6 4 2 . . . . 2 . . . . 1 1 6 3 5 16 18 24 Combat Bots Only 24 | . 3 3 6 . 5 4 3 . 3 5 1 3 . . 1 4 4 . . . . . . . . . . . . 6 2 5 16 16 24 Max Kills in Single Turn 7 | 1 1 1 1 . 4 2 2 . 1 4 1 3 . . 1 4 1 1 . . . . 1 . . . . 1 1 2 1 2 2 5 7 Gunslinging . | . . . . . . . . . . . . . . . . . . . . . . . . . . . . . . . . . . . . Exploded 7 | . . . 1 . 2 2 1 . 1 4 . 3 . . . 4 1 . . . . . . . . . . . . 2 . 2 2 4 7 Melee 1 | . . . . . 1 . 1 . . . 1 . . . 1 . 1 . . . . . . . . . . . . . 1 . . . 1 Uniques/NPCs Destroyed . | . . . . . . . . . . . . . . . . . . . . . . . . . . . . . . . . . . . . Combat | -11 -10 -10 -9 -9 -8 -8 -8 -8 -7 -7 -7 -7 -7 -7 -6 -6 -6 -5 -5 -5 -5 -4 -4 -4 -4 -4 -3 -3 -3 -2 -2 -2 -2 -1 -1 -------- Run | Yrd Mat Min Mat Min Mat Gar Mat Gar Fac Gar Fac Low Low Zio Pro Fac Gar Fac Upp Upp Zhi Pro Fac Upp Upp War Pro Res Tes Res Qua Sec Gar Acc Com Hostile Shots Fired 1576 | . 43 12 131 . 119 63 46 6 77 108 46 1 . . 12 49 44 13 13 3 . 3 5 . . 11 . 5 6 25 44 20 78 342 251 Missed 735 | . 13 5 60 . 56 26 17 2 38 61 25 1 . . 4 28 20 5 5 2 . 3 3 . . 3 . 5 4 12 21 6 39 158 113 Hits 841 | . 30 7 71 . 63 37 29 4 39 47 21 . . . 8 21 24 8 8 1 . . 2 . . 8 . . 2 13 23 14 39 184 138 Melee 25 | . . . . . 17 . . . . . 1 . . . . . . . . . . . . . . . . . . . . 2 . 5 . Projectile 816 | . 30 7 71 . 46 37 29 4 39 47 20 . . . 8 21 24 8 8 1 . . 2 . . 8 . . 2 13 23 12 39 179 138 AOE 12 | . . . . . 2 . . . . . . . . . . . . . . . . . . . . . . 1 . . . 2 . 2 5 Critical Strikes 53 | . . . . . 9 1 1 1 1 3 . . . . 1 . 1 . 1 . . . . . . . . . . . 6 . 2 14 12 Actively Blocked 5 | . . . . . 4 . . . . . . . . . . . . . . . . . . . . . . . . . 1 . . . . Part Disruptions 3 | . . . . . . . . . . . . . . . . . . . . . . . . . . . . . . . . . . 2 1 Damage Taken 17904 | . 313 56 710 . 1222 453 414 45 390 475 272 . . . 134 326 474 100 152 14 . . 38 . . 109 . 34 46 319 1062 407 953 4357 5029 Core 2192 | . 70 19 215 . 246 78 32 . 55 65 . . . . 17 37 93 . . . . . 21 . . 12 . . 23 25 52 7 100 547 478 Absorbed by Shields 345 | . . . . . . 75 . . . . . . . . . . . . . . . . . . . . . . . . . . 13 238 19 Reduced by Siege Mode 11 | . . . . . . . . . . . . . . . . . . . . . . . . . . . . . . . . . . . 11 Redirected to Shielding 1119 | . 6 4 59 . 195 80 43 8 63 111 43 . . . 21 79 89 52 38 9 . . 11 . . 16 . 22 15 30 17 . . . 108 Regen/Repaired (Parts) 2096 | . 10 . . . 149 . 184 . 328 . 112 . . 109 . . . 57 . . . 106 . . . . . . 14 29 . 657 341 . . Core Remaining (%) 73 | 100 . 64 . 46 . . . 35 . . . . . . 80 . 84 . . . . 100 . . . . 97 . 98 . . . 74 . 35 Volleys Fired 1624 | 16 69 5 104 . 263 87 131 2 47 62 . 1 . . . 17 59 . . . . 2 3 . . 1 . . . 102 99 88 165 262 39 Largest 6 | 1 2 2 2 . 2 2 1 1 1 2 . 1 . . . 1 1 . . . . 1 1 . . 1 . . . 2 3 4 4 6 5 Hottest 569 | 20 60 40 118 . 46 67 37 37 37 80 . 39 . . . 39 39 . . . . 7 7 . . 40 . . . 140 120 185 405 569 279 Shots Fired 2808 | 16 123 10 185 . 268 136 133 2 47 105 . 1 . . . 17 59 . . . . 2 3 . . 1 . . . 200 209 172 338 709 72 Gun 1403 | 16 56 10 78 . 30 49 . . . . . . . . . . . . . . . . . . . 1 . . . 194 201 123 239 374 32 Cannon 1170 | . 67 . 102 . 170 83 128 2 42 96 . . . . . 9 55 . . . . . . . . . . . . . 8 46 65 268 29 Launcher 230 | . . . 5 . 68 4 5 . 5 9 . 1 . . . 8 4 . . . . . . . . . . . . 6 . 3 34 67 11 Special 5 | . . . . . . . . . . . . . . . . . . . . . . 2 3 . . . . . . . . . . . . Kinetic 1527 | 16 123 10 94 . 186 132 128 2 42 96 . . . . . 9 55 . . . . . . . . . . . . 186 204 127 . 79 38 Thermal 408 | . . . 40 . . . . . . . . . . . . . . . . . . . . . . . . . . . 5 42 65 233 23 Explosive 157 | . . . . . . 4 5 . 5 9 . 1 . . . 8 4 . . . . . . . . . . . . 6 . 3 34 67 11 Electromagnetic 199 | . . . 51 . 82 . . . . . . . . . . . . . . . . . . . . . . . . 8 . . . 58 . Slashing 511 | . . . . . . . . . . . . . . . . . . . . . . . . . . . . . . . . . 239 272 . Entropic 1 | . . . . . . . . . . . . . . . . . . . . . . . . . . 1 . . . . . . . . . Robot Hit Streak 16 | 5 9 3 10 . 16 6 7 2 11 12 . . . . . 5 9 . . . . 1 4 . . . . . . 9 10 14 14 12 8 Robot Miss Streak 10 | 3 7 2 7 . 6 5 4 1 2 4 . . . . . 2 4 . . . . 1 . . . . . . . 4 3 5 4 10 6 Penetration Max 3 | . . . . . . 1 . . . . . . . . . . . . . . . . . . . . . . . 1 1 3 1 1 1 Secondary Targets 5 | . . . 2 . . . . . . . . . . . . . . . . . . . . . . . . . . 1 . 1 . 1 . Max Gunslinging Chain 1 | . . . 1 . . . . . . . . . . . . . . . . . . . . . . . . . . 1 . 1 . 1 . Shots Hit Robots 1465 | 10 71 5 104 . 109 56 70 1 34 65 17 . . . 6 28 41 10 . . 3 5 17 . . . . 2 5 123 86 77 154 313 53 Core Hits 1060 | 3 35 4 56 . 101 26 47 . 21 41 5 3 . . . 32 22 6 . . 3 2 4 . . . . 1 1 77 39 35 93 293 110 Critical Kills 46 | . . . . . . . . . . . . . . . . . . . . . . . . . . . . . . 18 13 12 . 3 . Critical Parts Destroyed 64 | . . . . . . 2 . . . . . . . . . . . . . . . . . . . . . . . 22 27 13 . . . Critical Strikes 176 | . 5 . 4 . 6 4 5 . 3 2 3 . . . 1 . 2 1 . . . 1 . . . . . . . 47 42 39 2 8 1 Burn 2 | . . . 2 . . . . . . . . . . . . . . . . . . . . . . . . . . . . . . . . Meltdown 3 | . . . . . . . . . . . . . . . . . . . . . . . . . . . . . . . . . . 3 . Destroy 129 | . . . . . . 2 . . . . . . . . . . . . . . . . . . . . . . . 46 42 39 . . . Blast 20 | . 5 . 2 . 2 2 1 . 2 2 . . . . . . 2 . . . . . . . . . . . . . . . . 1 1 Corrupt 1 | . . . . . . . . . . . . . . . . . . . . . . . . . . . . . . . . . . 1 . Sever 8 | . . . . . . . . . . . . . . . 1 . . 1 . . . 1 . . . . . . . 1 . . 2 2 . Impale 13 | . . . . . 4 . 4 . 1 . 3 . . . . . . . . . . . . . . . . . . . . . . 1 . Melee Attacks 840 | . 20 . 35 . 132 17 69 15 18 53 55 3 13 . 15 85 42 30 3 . 3 50 26 5 3 . . 5 18 63 26 . . 16 20 Impact 15 | . . . . . 15 . . . . . . . . . . . . . . . . . . . . . . . . . . . . . . Slashing 517 | . 20 . 35 . 29 . . . . . 23 3 13 . 15 85 42 30 3 . 3 50 26 5 3 . . 5 18 63 26 . . . 20 Piercing 308 | . . . . . 88 17 69 15 18 53 32 . . . . . . . . . . . . . . . . . . . . . . 16 . Sneak Attacks 102 | . 3 . 6 . 19 . 11 . 5 1 8 . . . 2 12 1 4 . . . . 6 . . . . 1 1 13 1 . . 6 2 Combat Hostiles 7 | . . . . . 2 . 1 . . . 1 . . . 2 . 1 . . . . . . . . . . . . . . . . . . Follow-up Attacks . | . . . . . . . . . . . . . . . . . . . . . . . . . . . . . . . . . . . . Damage Inflicted 78291 | 130 1318 45 2386 . 6726 1635 4136 25 1350 3212 1157 204 . . 469 2681 2181 867 . . 388 350 1283 . . . . 211 365 4864 1372 1470 7218 23712 8536 Guns 15364 | 130 298 45 631 . 399 609 . . . . . . . . . . . . . . . . . . . . . . . 1012 988 770 4330 5772 380 Cannons 15920 | . 702 . 955 . 2193 753 1598 25 682 1459 . . . . . 169 984 . . . . . . . . . . . . . . 154 249 5270 727 Explosions 27480 | . . . 139 . 2007 205 341 . 235 879 . 204 . . . 1161 341 . . . . . . . . . . . . 848 . 546 2639 11521 6414 Melee 19527 | . 318 . 661 . 2127 68 2197 . 433 874 1157 . . . 469 1351 856 867 . . 388 350 1283 . . . . 211 365 3004 384 . . 1149 1015 Ramming . | . . . . . . . . . . . . . . . . . . . . . . . . . . . . . . . . . . . . Kinetic 15250 | 130 1000 45 894 . 2378 1362 1598 25 682 1459 . . . . . 169 984 . . . . . . . . . . . . 904 988 856 . 902 874 Thermal 5675 | . . . 243 . 518 . . . . . . . . . . 28 . . . . . . . . . . . . . . . 68 249 4336 233 Explosive 25306 | . . . . . . 205 341 . 235 879 . 204 . . . 1133 341 . . . . . . . . . . . . 848 . 546 2639 11521 6414 Electromagnetic 3749 | . . . 588 . 1703 . . . . . . . . . . . . . . . . . . . . . . . . 108 . . . 1350 . Impact 481 | . . . . . 481 . . . . . . . . . . . . . . . . . . . . . . . . . . . . . . Slashing 21172 | . 318 . 661 . 516 . . . . . 350 . . . 469 1351 856 867 . . 388 350 1283 . . . . 211 365 3004 384 . 4330 4454 1015 Piercing 6658 | . . . . . 1130 68 2197 . 433 874 807 . . . . . . . . . . . . . . . . . . . . . . 1149 . Highest Corruption 6 | . 3 3 6 6 2 2 2 2 . . . . . . . . . . . . . . 4 4 4 4 . . . . 2 2 2 . . Average Corruption 2 | . 2 3 5 6 1 2 2 2 . . . . . . . . . . . . . . 4 4 4 4 . . . . 2 2 2 . . Corruption Purged . | . . . . . . . . . . . . . . . . . . . . . . . . . . . . . . . . . . . . Corruption Blocked . | . . . . . . . . . . . . . . . . . . . . . . . . . . . . . . . . . . . . Effects 127 | . 15 2 14 2 30 15 17 2 . . . . . . . . . . . . . . 3 1 1 . . . . . 1 10 14 . . Message Errors 37 | . 4 1 7 1 6 2 6 1 . . . . . . . . . . . . . . . . . . . . . . . 3 6 . . Matter Fused 24 | . 5 1 2 . 5 6 . . . . . . . . . . . . . . . . . . 1 . . . . . . 2 2 . . Heat Flow Errors 15 | . 2 . 4 . 2 . 3 . . . . . . . . . . . . . . . 2 . . . . . . . . . 2 . . Energy Discharges 15 | . . . 1 . 7 2 3 . . . . . . . . . . . . . . . 1 1 . . . . . . . . . . . Parts Rejected 2 | . 1 . . . 1 . . . . . . . . . . . . . . . . . . . . . . . . . . . . . . Parts Fused 2 | . . . . . . 1 . . . . . . . . . . . . . . . . . . . . . . . . . 1 . . . Data Loss (minor) 16 | . 2 . . 1 3 2 2 . . . . . . . . . . . . . . . . . . . . . . . 1 2 3 . . Data Loss (major) 8 | . 1 . . . 3 . 1 1 . . . . . . . . . . . . . . . . . . . . . . . 1 1 . . Misfires 3 | . . . . . . 1 2 . . . . . . . . . . . . . . . . . . . . . . . . . . . . Alerts 2 | . . . . . 1 1 . . . . . . . . . . . . . . . . . . . . . . . . . . . . . Weapon Failures 3 | . . . . . 2 . . . . . . . . . . . . . . . . . . . . . . . . . . 1 . . . Overload Shots . | . . . . . . . . . . . . . . . . . . . . . . . . . . . . . . . . . . . . Overflow Damage 4797 | . 35 . 48 . 776 32 349 . 148 83 284 . . . 184 309 129 170 . . . . 316 . . . . 4 110 432 18 79 68 979 244 Projectiles 277 | . 3 . 29 . 24 7 . . . 8 . . . . . . 32 . . . . . . . . . . . . . . . 10 154 10 Explosions 994 | . . . . . 42 25 . . . 45 . . . . . 40 . . . . . . . . . . . . . 16 . 79 58 520 169 Melee 3526 | . 32 . 19 . 710 . 349 . 148 30 284 . . . 184 269 97 170 . . . . 316 . . . . 4 110 416 18 . . 305 65 Knockbacks 31 | . 4 . 2 . 2 4 . . 2 5 . . . . . . 5 . . . . . . . . . . . . . . . . . 7 Impact . | . . . . . . . . . . . . . . . . . . . . . . . . . . . . . . . . . . . . Kinetic 31 | . 4 . 2 . 2 4 . . 2 5 . . . . . . 5 . . . . . . . . . . . . . . . . . 7 Secondary . | . . . . . . . . . . . . . . . . . . . . . . . . . . . . . . . . . . . . Self-Inflicted Damage 148 | . . . . . 48 15 . . 23 . . . . . . 9 . . . . . . . . . . . . . . . . 53 . . Shots 8 | . . . . . 4 1 . . 1 . . . . . . 1 . . . . . . . . . . . . . . . . 1 . . Rammed . | . . . . . . . . . . . . . . . . . . . . . . . . . . . . . . . . . . . . Targets Rammed . | . . . . . . . . . . . . . . . . . . . . . . . . . . . . . . . . . . . . Kicked . | . . . . . . . . . . . . . . . . . . . . . . . . . . . . . . . . . . . . Crushed . | . . . . . . . . . . . . . . . . . . . . . . . . . . . . . . . . . . . . Highest Temperature 551 | . 245 8 364 2 310 195 213 58 26 16 94 . . . . 106 162 288 159 184 24 158 144 . 50 103 29 20 . 256 276 22 551 371 1 Average Temperature 54 | . 46 4 101 2 39 48 37 15 7 3 52 . . . . 34 27 75 94 121 12 54 70 . 28 33 19 15 . 93 103 22 173 113 1 Received Heat Transfer 2061 | . 111 . 153 . 276 219 108 45 114 126 24 . . . . 36 219 9 12 . . . . . . 42 . . . 27 18 36 108 306 72 Effects 8 | . . . 6 . 1 . . . . . . . . . . . . . . . . . . . . . . . . . . . . 1 . Shutdowns 3 | . . . 2 . 1 . . . . . . . . . . . . . . . . . . . . . . . . . . . . . . Energy Bleed 4 | . . . 4 . . . . . . . . . . . . . . . . . . . . . . . . . . . . . . . . Interference 1 | . . . . . . . . . . . . . . . . . . . . . . . . . . . . . . . . . . 1 . Siege Activations 1 | . . . . . . . . . . . . . . . . . . . . . . . . . . . . . . . . . . . 1 Total Turns 13 | . . . . . . . . . . . . . . . . . . . . . . . . . . . . . . . . . . . 13 Longest Duration 13 | . . . . . . . . . . . . . . . . . . . . . . . . . . . . . . . . . . . 13 Martial Activations . | . . . . . . . . . . . . . . . . . . . . . . . . . . . . . . . . . . . . Shielding Activations . | . . . . . . . . . . . . . . . . . . . . . . . . . . . . . . . . . . . . Robots Disrupted . | . . . . . . . . . . . . . . . . . . . . . . . . . . . . . . . . . . . . Combat Hostiles . | . . . . . . . . . . . . . . . . . . . . . . . . . . . . . . . . . . . . Robots Corrupted 5 | . . . 1 . 2 . . . . . . . . . . . . . . . . . . . . . . . . 1 . . . 1 . Combat Hostiles 4 | . . . 1 . 1 . . . . . . . . . . . . . . . . . . . . . . . . 1 . . . 1 . Parts Fried 20 | . . . 2 . 7 . . . . . . . . . . . . . . . . . . . . . . . . . . . . 11 . Impact Corruptions 3 | . . . . . 3 . . . . . . . . . . . . . . . . . . . . . . . . . . . . . . Robots Melted 5 | . . . . . . . . . . . . . . . . . . . . . . . . . . . . . . . . . . 5 . Combat Hostiles 5 | . . . . . . . . . . . . . . . . . . . . . . . . . . . . . . . . . . 5 . Parts Melted 16 | . . . 1 . 2 . . . . . . . . . . . . . . . . . . . . . . . . . . . . 13 . Heat Transferred 6030 | . . . 666 . 600 . . . . . . . . . . 50 . . . . . . . . . . . . . . . 74 259 4068 313 Parts Sabotaged 2 | . . . . . . . . . . . . . . . . . . . . . . . . . . . . . . . . . . 2 . Parts Stolen . | . . . . . . . . . . . . . . . . . . . . . . . . . . . . . . . . . . . . Parts Stripped . | . . . . . . . . . . . . . . . . . . . . . . . . . . . . . . . . . . . . Power Chain Reactions 14 | . . . 2 . 12 . . . . . . . . . . . . . . . . . . . . . . . . . . . . . . Alert | -11 -10 -10 -9 -9 -8 -8 -8 -8 -7 -7 -7 -7 -7 -7 -6 -6 -6 -5 -5 -5 -5 -4 -4 -4 -4 -4 -3 -3 -3 -2 -2 -2 -2 -1 -1 ------- Run | Yrd Mat Min Mat Min Mat Gar Mat Gar Fac Gar Fac Low Low Zio Pro Fac Gar Fac Upp Upp Zhi Pro Fac Upp Upp War Pro Res Tes Res Qua Sec Gar Acc Com Maximum Alert Level 5 | . 1 1 2 1 4 5 4 3 3 5 4 . . . . 3 5 3 . . . . 1 . . . . . . 4 3 3 5 5 5 Low Security (%) 9 | 100 50 94 22 16 4 . . . . . . . . . . . . . . . . . 89 . . . . 100 100 12 . 1 . . . Level 1 12 | . 49 5 34 83 5 . . . . . . . . . . 33 . 11 . . . . 10 . . . . . . 24 41 32 . . . Level 2 17 | . . . 43 . 15 . . . 51 . . . . . . 58 13 52 . . . . . . . . . . . 22 55 38 1 . . Level 3 17 | . . . . . 39 4 12 100 48 27 28 . . . . 8 20 36 . . . . . . . . . . . 21 3 28 10 . . Level 4 22 | . . . . . 36 27 87 . . 35 71 . . . . . 65 . . . . . . . . . . . . 19 . . 8 . . Level 5 13 | . . . . . . 68 . . . 36 . . . . . . . . . . . . . . . . . . . . . . 79 4 84 High Security 7 | . . . . . . . . . . . . . . . . . . . . . . . . . . . . . . . . . . 95 15 Max Security . | . . . . . . . . . . . . . . . . . . . . . . . . . . . . . . . . . . . . Sterilizations 1 | . . . . . 1 . . . . . . . . . . . . . . . . . . . . . . . . . . . . . . Peak Influence 7523 | 5 384 203 621 234 1559 2197 1476 1065 993 1991 1363 . . . . 804 1614 915 . . . . 276 . . . . 109 162 1195 729 857 2807 7523 5238 Initial 4801 | . 3 113 74 234 75 1005 1070 946 558 695 1045 . . . . 328 415 847 . . . . 2 . . . . . 69 86 668 175 638 1684 4801 Average 1246 | 1 201 148 384 214 989 1763 1286 1020 700 1395 1187 . . . . 486 1203 593 . . . . 105 . . . . 41 95 590 500 556 2177 4180 5070 Influence Increases 27671 | 10 691 100 1049 . 2296 1222 1016 119 795 1456 660 100 . . 145 1963 1259 410 . 45 5 50 475 . . 60 . 184 205 1537 688 950 2189 6089 1903 Destroy 0b10 Robot/C 8720 | . 400 60 580 . 1020 360 480 . 180 640 . 60 . . 40 300 300 . . . . . . . . . . . . 520 280 260 720 1840 680 Destroy 0b10 Robot/NC 955 | 10 35 . 80 . 150 5 70 . 30 25 40 . . . 10 80 20 35 . . 5 5 30 . . . . 5 5 95 15 20 5 145 35 Destroy Leader 1650 | . 84 10 150 . 268 20 176 . 54 40 6 10 . . 10 48 30 6 . . . . 6 . . . . 2 2 166 96 34 60 300 72 Allied During Kill 173 | . . . . . 41 . . . . 95 . . . . 25 2 10 . . . . . . . . . . . . . . . . . . Trap Triggered on 0b10 50 | . . . . . . . . . . . . . . . . . 50 . . . . . . . . . . . . . . . . . . Successful Hack 370 | . 33 . 23 . 25 . 31 14 107 . 63 . . . . 28 10 1 . . . . 5 . . . . 6 . . . 24 . . . Select Force Hacks 90 | . . . . . 30 . . . . . 30 . . . . . . 30 . . . . . . . . . . . . . . . . . Disable Machine 1200 | . 15 . 45 . 90 30 30 . 75 30 15 . . . . 150 90 . . . . . . . . . . . 60 45 75 105 105 195 45 Anti-Garrison Action 1700 | . . . . . . 550 . 50 . 350 . . . . . . 400 . . . . . . . . . . . . . . . 350 . . Destroy Structure 3898 | . 4 . 21 . 147 137 64 40 34 201 26 . . . . 200 109 38 . . . . 14 . . . . 6 18 231 72 147 754 1389 246 Advance Influence 300 | . . . . . . . . . . . . . . . . 300 . . . . . . . . . . . . . . . . . . . Partial Spotted 1980 | . 15 . 75 . 75 60 75 . 90 15 90 . . . . 195 75 105 . . . . 90 . . . . 90 30 180 120 165 15 315 105 Lose Combat Pursuer 6585 | . 105 30 75 . 450 60 90 15 225 60 390 30 . . 60 660 165 195 . 45 . 45 330 . . 60 . 75 90 300 30 195 180 1905 720 Influence Decreases 21397 | 5 405 198 641 407 943 572 1757 510 867 458 1288 605 214 644 100 1415 238 1483 321 72 198 45 214 119 59 98 50 60 175 502 1565 411 233 1393 3132 Entered New Map 12514 | . 2 178 119 367 119 542 1127 510 507 298 946 505 164 644 . 17 178 767 201 42 193 . 3 99 29 88 50 . 55 68 521 137 213 1123 2702 Time Decay 5340 | 5 373 20 452 40 724 . 440 . 350 . 302 100 50 . 37 428 . 246 60 30 5 45 181 20 30 10 . 60 110 434 404 254 . 30 100 Search Patrol Dispatched 200 | . . . . . . . . . . . . . . . . 200 . . . . . . . . . . . . . . . . . . . Lost Part 860 | . 30 . 50 . 20 30 30 . . 20 40 . . . . . . . . . . . . . . . . . . . 40 10 20 240 330 Lost Ally 533 | . . . 20 . 80 . 10 . 10 140 . . . . 63 20 60 20 60 . . . 30 . . . . . 10 . . 10 . . . Purge Threat 1950 | . . . . . . . 150 . . . . . . . . 750 . 450 . . . . . . . . . . . . 600 . . . . Squads Dispatched 159 | . 3 . 3 . 19 . 2 . 5 . 12 . . . . 12 . 8 . . . . 2 . . . . 4 4 2 1 9 . 73 . Investigation 33 | . 2 . 1 . 4 . 1 . 2 . 7 . . . . 4 . 5 . . . . 1 . . . . 1 1 2 1 1 . . . Extermination 16 | . . . . . . . . . 2 . 3 . . . . 4 . 1 . . . . 1 . . . . 1 2 . . 2 . . . Reinforcement 36 | . 1 . 2 . 10 . 1 . 1 . 2 . . . . 1 . 2 . . . . . . . . . 2 1 . . 5 . 8 . Assault 63 | . . . . . 2 . . . . . . . . . . 2 . . . . . . . . . . . . . . . 1 . 58 . Garrison 11 | . . . . . 3 . . . . . . . . . . 1 . . . . . . . . . . . . . . . . . 7 . Intercept . | . . . . . . . . . . . . . . . . . . . . . . . . . . . . . . . . . . . . Searches Triggered 2 | . . . . . . . . . . . . . . . . 2 . . . . . . . . . . . . . . . . . . . Construction Impeded 10 | . . . 1 . 4 . . . 1 . . . . . . . . . . . . . . . . . . . . . . 1 . 3 . Haulers Reinforced 5 | . . . . . . . . . . . 1 . . . . . . . . . . . . . . . . . . . . 1 . 3 . Active Scanning Responses . | . . . . . . . . . . . . . . . . . . . . . . . . . . . . . . . . . . . . Cargo Convoy Interrupts . | . . . . . . . . . . . . . . . . . . . . . . . . . . . . . . . . . . . . Stealth | -11 -10 -10 -9 -9 -8 -8 -8 -8 -7 -7 -7 -7 -7 -7 -6 -6 -6 -5 -5 -5 -5 -4 -4 -4 -4 -4 -3 -3 -3 -2 -2 -2 -2 -1 -1 --------- Run | Yrd Mat Min Mat Min Mat Gar Mat Gar Fac Gar Fac Low Low Zio Pro Fac Gar Fac Upp Upp Zhi Pro Fac Upp Upp War Pro Res Tes Res Qua Sec Gar Acc Com Distress Signals 44 | . . . 2 . 3 . 2 . 1 . 1 . . . . 2 . 1 . . . . 2 . . . . . 5 4 . 3 . 5 13 Communications Jammed . | . . . . . . . . . . . . . . . . . . . . . . . . . . . . . . . . . . . . Distress Signals . | . . . . . . . . . . . . . . . . . . . . . . . . . . . . . . . . . . . . Times Spotted 1098 | . 35 7 42 . 94 19 47 9 28 36 37 5 . . 5 64 23 25 4 2 . 17 22 . . 7 . 8 23 71 24 33 41 245 125 Peak Tracking Total 52 | . 6 6 5 . 6 5 9 10 7 4 7 3 . . 5 9 4 7 3 3 . 9 11 . . 4 . 5 14 9 5 6 9 32 52 Tactical Retreats 173 | . 4 1 5 . 22 3 4 1 5 3 12 1 . . 2 16 9 4 . 1 . 2 5 . . 1 . 1 2 10 2 7 7 33 10 Traps | -11 -10 -10 -9 -9 -8 -8 -8 -8 -7 -7 -7 -7 -7 -7 -6 -6 -6 -5 -5 -5 -5 -4 -4 -4 -4 -4 -3 -3 -3 -2 -2 -2 -2 -1 -1 ------- Run | Yrd Mat Min Mat Min Mat Gar Mat Gar Fac Gar Fac Low Low Zio Pro Fac Gar Fac Upp Upp Zhi Pro Fac Upp Upp War Pro Res Tes Res Qua Sec Gar Acc Com Traps Triggered 51 | . 3 . . . 3 7 . 1 1 5 2 . . . . 4 1 . . . . . . . . . . 1 4 . 3 2 8 4 2 Indirectly 1 | . . . . . 1 . . . . . . . . . . . . . . . . . . . . . . . . . . . . . . Trap Hack Attempts 9 | . . . . . . . . . . . . . . . . . 9 . . . . . . . . . . . . . . . . . . Triggered . | . . . . . . . . . . . . . . . . . . . . . . . . . . . . . . . . . . . . Disarmed . | . . . . . . . . . . . . . . . . . . . . . . . . . . . . . . . . . . . . Reprogrammed 2 | . . . . . . . . . . . . . . . . . 2 . . . . . . . . . . . . . . . . . . Reused 5 | . . . . . . . . . . . . . . . . . 5 . . . . . . . . . . . . . . . . . . Traps Extracted 2 | . . . . . . . . . . . . . . . . . 2 . . . . . . . . . . . . . . . . . . Installed 11 | . . . . . . . . . . . . . . . . . 11 . . . . . . . . . . . . . . . . . . Triggered 5 | . . . . . . . . . . . . . . . . . 5 . . . . . . . . . . . . . . . . . . Most Traps Carried 6 | . . . . . . . . . . . . . . . . . 6 . . . . . . . . . . . . . . . . . . Machines | -11 -10 -10 -9 -9 -8 -8 -8 -8 -7 -7 -7 -7 -7 -7 -6 -6 -6 -5 -5 -5 -5 -4 -4 -4 -4 -4 -3 -3 -3 -2 -2 -2 -2 -1 -1 ---------- Run | Yrd Mat Min Mat Min Mat Gar Mat Gar Fac Gar Fac Low Low Zio Pro Fac Gar Fac Upp Upp Zhi Pro Fac Upp Upp War Pro Res Tes Res Qua Sec Gar Acc Com Machines Disabled 112 | . 1 . 3 . 6 9 2 1 5 10 1 . . . 1 10 13 . 1 . . . . . . 1 . . 4 3 5 7 13 13 3 Max in Single Turn 9 | . 1 . 1 . 1 2 1 1 4 2 1 . . . 1 9 2 . 1 . . . . . . 1 . . 1 1 1 1 1 2 1 Garrison Access 9 | . . . . . . . . . . . 2 . . . . 2 . . . . . . 1 . . . . . . 3 1 . . . . Garrison Relay 22 | . . . . . . 5 . 1 . 6 . . . . . . 5 . . . . . . . . . . . . . . . 5 . . Phase Generator 3 | . . . . . . 1 . . . 1 . . . . . . 1 . . . . . . . . . . . . . . . . . . Energy Cycler 2 | . . . . . . . . . . . . . . . . . . . . . . . . . . . . . . . . . . 2 . Machines Repaired . | . . . . . . . . . . . . . . . . . . . . . . . . . . . . . . . . . . . . Machines Dismantled . | . . . . . . . . . . . . . . . . . . . . . . . . . . . . . . . . . . . . Machines Sabotaged . | . . . . . . . . . . . . . . . . . . . . . . . . . . . . . . . . . . . . Overloaded Fab Kills . | . . . . . . . . . . . . . . . . . . . . . . . . . . . . . . . . . . . . Hacking | -11 -10 -10 -9 -9 -8 -8 -8 -8 -7 -7 -7 -7 -7 -7 -6 -6 -6 -5 -5 -5 -5 -4 -4 -4 -4 -4 -3 -3 -3 -2 -2 -2 -2 -1 -1 --------- Run | Yrd Mat Min Mat Min Mat Gar Mat Gar Fac Gar Fac Low Low Zio Pro Fac Gar Fac Upp Upp Zhi Pro Fac Upp Upp War Pro Res Tes Res Qua Sec Gar Acc Com Machines Accessed 138 | . 8 . 11 1 15 3 12 1 16 2 19 1 . . 1 12 1 6 1 1 4 2 6 . . 2 . 1 1 2 3 5 . . 1 Terminals 70 | . 7 . 9 . 9 3 7 1 10 2 7 . . . . 3 1 1 . . . 1 3 . . . . . . 1 1 3 . . 1 Fabricators 13 | . . . . . . . . . 3 . 4 . . . . 3 . 1 . . . . 2 . . . . . . . . . . . . Repair Stations 14 | . 1 . . . 2 . 2 . 2 . 4 . . . . . . 1 . . . 1 . . . . . . 1 . . . . . . Recycling Units 3 | . . . . . 1 . . . . . 1 . . . . 1 . . . . . . . . . . . . . . . . . . . Scanalyzers 13 | . . . 2 . 2 . 2 . . . 1 . . . . 1 . 2 . . . . . . . . . 1 . . 1 1 . . . Garrison Access 14 | . . . . . 1 . 1 . 1 . 2 . . . . 4 . 1 . . . . 1 . . . . . . 1 1 1 . . . Total Hacks 374 | . 22 . 32 1 55 7 38 1 52 3 47 1 . . 1 30 3 16 1 1 17 4 13 . . 2 . 5 1 4 7 8 . . 2 Successful 234 | . 11 . 20 1 41 . 25 1 27 3 28 1 . . 1 17 1 9 1 1 17 3 8 . . 2 . 4 1 2 3 5 . . 1 Failed 138 | . 11 . 11 . 14 7 13 . 25 . 18 . . . . 13 2 7 . . . 1 5 . . . . 1 . 2 4 3 . . 1 Catastrophic 16 | . 1 . 2 . 1 2 . . 6 . 2 . . . . 1 . 1 . . . . . . . . . . . . . . . . . Database Lockouts 2 | . . . 1 . . . . . . . 1 . . . . . . . . . . . . . . . . . . . . . . . . Manual 169 | . 18 . 24 . 34 . 19 . 26 1 19 . . . . 8 1 5 . . . . 9 . . . . 3 1 . . . . . 1 Terminals 195 | . 18 . 25 . 32 7 21 1 30 3 16 . . . . 10 3 2 . . . 2 8 . . . . 3 . 3 3 6 . . 2 Fabricators 36 | . . . . . . . . . 8 . 12 . . . . 8 . 4 . . . . 4 . . . . . . . . . . . . Repair Stations 47 | . 4 . . . 11 . 7 . 12 . 7 . . . . . . 3 . . . 2 . . . . . . 1 . . . . . . Recycling Units 5 | . . . . . 1 . . . . . 1 . . . . 3 . . . . . . . . . . . . . . . . . . . Scanalyzers 47 | . . . 7 . 9 . 8 . . . 8 . . . . 4 . 5 . . . . . . . . . 2 . . 3 1 . . . Garrison Access 20 | . . . . . 2 . 2 . 2 . 3 . . . . 5 . 2 . . . . 1 . . . . . . 1 1 1 . . . Terminal Hacks 55 | . . . 3 1 6 . 4 1 3 2 2 1 . . 1 3 1 . 1 1 17 1 . . . 2 . . . 1 . 3 . . 1 Record 6 | . . . . . . . . . . . . . . . 1 . . . . . 5 . . . . . . . . . . . . . . Part Schematic 5 | . . . . . . . . . . . . . . . . 1 . . . . 4 . . . . . . . . . . . . . . Robot Analysis 7 | . . . 2 . . . . . 1 . . . . . . . . . . . 4 . . . . . . . . . . . . . . Prototype ID Bank 6 | . . . . . 1 . . . . . . . . . . 1 . . . . 4 . . . . . . . . . . . . . . Open Door 12 | . . . . 1 . . . . . 1 . 1 . . . . . . 1 1 . 1 . . . 2 . . . . . 3 . . 1 Open DSF 1 | . . . . . . . . . . . . . . . . . . . . . . . . . . . . . . 1 . . . . . Branch Access Points 3 | . . . 1 . 1 . . . . . 1 . . . . . . . . . . . . . . . . . . . . . . . . Emergency Access Points 2 | . . . . . . . . 1 . 1 . . . . . . . . . . . . . . . . . . . . . . . . . Terminal Index 2 | . . . . . . . 1 . 1 . . . . . . . . . . . . . . . . . . . . . . . . . . Repair Station Index 1 | . . . . . . . 1 . . . . . . . . . . . . . . . . . . . . . . . . . . . . Alert Level 1 | . . . . . . . 1 . . . . . . . . . . . . . . . . . . . . . . . . . . . . Unreport Threat 1 | . . . . . . . 1 . . . . . . . . . . . . . . . . . . . . . . . . . . . . Locate Traps 4 | . . . . . 3 . . . 1 . . . . . . . . . . . . . . . . . . . . . . . . . . Hauler Manifests 1 | . . . . . . . . . . . . . . . . 1 . . . . . . . . . . . . . . . . . . . Zone Layout 2 | . . . . . 1 . . . . . 1 . . . . . . . . . . . . . . . . . . . . . . . . Garrison Registry 1 | . . . . . . . . . . . . . . . . . 1 . . . . . . . . . . . . . . . . . . Fabricator Hacks 18 | . . . . . . . . . 3 . 6 . . . . 4 . 2 . . . . 3 . . . . . . . . . . . . Network Status 3 | . . . . . . . . . . . 1 . . . . 2 . . . . . . . . . . . . . . . . . . . Load Schematic 9 | . . . . . . . . . 2 . 3 . . . . 1 . 1 . . . . 2 . . . . . . . . . . . . Build 6 | . . . . . . . . . 1 . 2 . . . . 1 . 1 . . . . 1 . . . . . . . . . . . . Repair Station Hacks 27 | . 2 . . . 7 . 4 . 8 . 2 . . . . . . 2 . . . 2 . . . . . . . . . . . . . Scan Component 14 | . 1 . . . 4 . 2 . 4 . 1 . . . . . . 1 . . . 1 . . . . . . . . . . . . . Repair 13 | . 1 . . . 3 . 2 . 4 . 1 . . . . . . 1 . . . 1 . . . . . . . . . . . . . Recycling Unit Hacks 2 | . . . . . . . . . . . . . . . . 2 . . . . . . . . . . . . . . . . . . . Process 1 | . . . . . . . . . . . . . . . . 1 . . . . . . . . . . . . . . . . . . . Retrieve Matter 1 | . . . . . . . . . . . . . . . . 1 . . . . . . . . . . . . . . . . . . . Scanalyzer 36 | . . . 6 . 9 . 5 . . . 4 . . . . 4 . 3 . . . . . . . . . 2 . . 2 1 . . . Insert Component 9 | . . . 1 . 2 . 2 . . . 1 . . . . 1 . . . . . . . . . . . . . . 2 . . . . Analyze 9 | . . . 1 . 2 . 3 . . . 1 . . . . 2 . . . . . . . . . . . . . . . . . . . Retrieve Study 18 | . . . 4 . 5 . . . . . 2 . . . . 1 . 3 . . . . . . . . . 2 . . . 1 . . . Garrison Access Hacks 12 | . . . . . 1 . 1 . 1 . 2 . . . . 3 . . . . . . 1 . . . . . . 1 1 1 . . . Unlock Access 6 | . . . . . 1 . 1 . 1 . . . . . . 2 . . . . . . . . . . . . . . . 1 . . . Seal Access 6 | . . . . . . . . . . . 2 . . . . 1 . . . . . . 1 . . . . . . 1 1 . . . . Unauthorized Hacks 84 | . 9 . 11 . 18 . 11 . 12 1 12 . . . . 1 . 2 . . . . 4 . . . . 2 1 . . . . . . Terminals 73 | . 9 . 11 . 16 . 10 . 12 1 8 . . . . 1 . . . . . . 3 . . . . 2 . . . . . . . Track 6 | . . . 1 . 2 . . . 3 . . . . . . . . . . . . . . . . . . . . . . . . . . Assimilate 8 | . . . 3 . 1 . 1 . 2 . . . . . . . . . . . . . 1 . . . . . . . . . . . . Botnet 19 | . 2 . 2 . 4 . 3 . 1 1 3 . . . . 1 . . . . . . 2 . . . . . . . . . . . . Disrupt 3 | . . . . . 2 . . . 1 . . . . . . . . . . . . . . . . . . . . . . . . . . Operators 3 | . 1 . . . 1 . . . . . . . . . . . . . . . . . . . . . . 1 . . . . . . . Skim 34 | . 6 . 5 . 6 . 6 . 5 . 5 . . . . . . . . . . . . . . . . 1 . . . . . . . Fabricators 3 | . . . . . . . . . . . 1 . . . . . . 1 . . . . 1 . . . . . . . . . . . . Prioritize 1 | . . . . . . . . . . . . . . . . . . 1 . . . . . . . . . . . . . . . . . Recompile 2 | . . . . . . . . . . . 1 . . . . . . . . . . . 1 . . . . . . . . . . . . Repair Stations 5 | . . . . . 1 . 1 . . . 2 . . . . . . . . . . . . . . . . . 1 . . . . . . Patch 5 | . . . . . 1 . 1 . . . 2 . . . . . . . . . . . . . . . . . 1 . . . . . . Recycling Units 2 | . . . . . 1 . . . . . 1 . . . . . . . . . . . . . . . . . . . . . . . . Tunnel 2 | . . . . . 1 . . . . . 1 . . . . . . . . . . . . . . . . . . . . . . . . Scanalyzers 1 | . . . . . . . . . . . . . . . . . . 1 . . . . . . . . . . . . . . . . . Extract 1 | . . . . . . . . . . . . . . . . . . 1 . . . . . . . . . . . . . . . . . Garrison Access . | . . . . . . . . . . . . . . . . . . . . . . . . . . . . . . . . . . . . Data Cores Recovered 5 | . . . . . . . . . 1 . 1 . . . . . . 2 . . . . 1 . . . . . . . . . . . . Used . | . . . . . . . . . . . . . . . . . . . . . . . . . . . . . . . . . . . . Hacking Detections 98 | . 8 . 8 . 11 3 11 . 16 1 13 . . . . 10 1 5 . . . 1 3 . . . . 1 . 1 1 3 . . 1 Full Trace Events 21 | . 2 . . . 2 3 1 . 2 . 3 . . . . 2 . 4 . . . . . . . . . . . 1 1 . . . . Feedback Events 1 | . . . . . . . . . . . 1 . . . . . . . . . . . . . . . . . . . . . . . . Hackware Fried 1 | . . . . . . . . . . . 1 . . . . . . . . . . . . . . . . . . . . . . . . Feedback Blocked . | . . . . . . . . . . . . . . . . . . . . . . . . . . . . . . . . . . . . Robot Schematics Acquired 1 | . . . . . . . . . . . . . . . . . . . . . . . . . . . . . . . . 1 . . . Robots Built . | . . . . . . . . . . . . . . . . . . . . . . . . . . . . . . . . . . . . Authchips . | . . . . . . . . . . . . . . . . . . . . . . . . . . . . . . . . . . . . Time . | . . . . . . . . . . . . . . . . . . . . . . . . . . . . . . . . . . . . Total Robot Build Rating . | . . . . . . . . . . . . . . . . . . . . . . . . . . . . . . . . . . . . Part Schematics Acquired 20 | . . . 1 . 1 . 2 . . . 1 . . . . 2 . 4 . . 4 . . . . . . . . . . 5 . . . Parts Built 11 | . . . . . . . . . 2 . 4 . . . . 2 . 2 . . . . 1 . . . . . . . . . . . . Authchips 2 | . . . . . . . . . . . 1 . . . . . . . . . . . 1 . . . . . . . . . . . . Time 235 | . . . . . . . . . 36 . 72 . . . . 24 . 47 . . . . 56 . . . . . . . . . . . . Total Part Build Rating 40 | . . . . . . . . . 6 . 12 . . . . 6 . 10 . . . . 6 . . . . . . . . . . . . Part Studies Acquired 18 | . . . 4 . 5 . . . . . 2 . . . . 1 . 3 . . . . . . . . . 2 . . . 1 . . . Parts Repaired 13 | . 1 . . . 3 . 2 . 4 . 1 . . . . . . 1 . . . 1 . . . . . . . . . . . . . Time 450 | . 13 . . . 114 . 76 . 152 . 38 . . . . . . 38 . . . 19 . . . . . . . . . . . . . Parts Recycled . | . . . . . . . . . . . . . . . . . . . . . . . . . . . . . . . . . . . . Recycled Matter 113 | . . . . . . . . . . . . . . . . 113 . . . . . . . . . . . . . . . . . . . Retrieved Matter 140 | . . . . . . . . . . . . . . . . 140 . . . . . . . . . . . . . . . . . . . Retrieved Components . | . . . . . . . . . . . . . . . . . . . . . . . . . . . . . . . . . . . . Parts Scanalyzed 7 | . . . 1 . 2 . 2 . . . 1 . . . . 1 . . . . . . . . . . . . . . . . . . . Part Schematics Acquired 6 | . . . 1 . 1 . 2 . . . 1 . . . . 1 . . . . . . . . . . . . . . . . . . . Parts Damaged . | . . . . . . . . . . . . . . . . . . . . . . . . . . . . . . . . . . . . Bothacking | -11 -10 -10 -9 -9 -8 -8 -8 -8 -7 -7 -7 -7 -7 -7 -6 -6 -6 -5 -5 -5 -5 -4 -4 -4 -4 -4 -3 -3 -3 -2 -2 -2 -2 -1 -1 ------------ Run | Yrd Mat Min Mat Min Mat Gar Mat Gar Fac Gar Fac Low Low Zio Pro Fac Gar Fac Upp Upp Zhi Pro Fac Upp Upp War Pro Res Tes Res Qua Sec Gar Acc Com Used RIF Installer . | . . . . . . . . . . . . . . . . . . . . . . . . . . . . . . . . . . . . Robots Hacked 3 | . . . . . . . . . . . . . . . . . . . . . . 2 1 . . . . . . . . . . . . Non-combat 1 | . . . . . . . . . . . . . . . . . . . . . . . 1 . . . . . . . . . . . . Combat 2 | . . . . . . . . . . . . . . . . . . . . . . 2 . . . . . . . . . . . . . Robot Hacks Applied 3 | . . . . . . . . . . . . . . . . . . . . . . 2 1 . . . . . . . . . . . . parse_system 2 | . . . . . . . . . . . . . . . . . . . . . . 2 . . . . . . . . . . . . . find_chute 1 | . . . . . . . . . . . . . . . . . . . . . . . 1 . . . . . . . . . . . . Relay Couplers Released 91 | . . . . . . 21 . 4 . 23 . . . . . 2 19 . . . . . . . . . . . . 3 . . 19 . . Machine Destruction 91 | . . . . . . 21 . 4 . 23 . . . . . 2 19 . . . . . . . . . . . . 3 . . 19 . . Fabnet Peak Effective % . | . . . . . . . . . . . . . . . . . . . . . . . . . . . . . . . . . . . . Robots Rewired 17 | . . . . . . . . . . 8 . . . . . 1 3 1 3 . . . 1 . . . . . . . . . . . . Allies Hacked . | . . . . . . . . . . . . . . . . . . . . . . . . . . . . . . . . . . . . Hacks Repelled . | . . . . . . . . . . . . . . . . . . . . . . . . . . . . . . . . . . . . Allies | -11 -10 -10 -9 -9 -8 -8 -8 -8 -7 -7 -7 -7 -7 -7 -6 -6 -6 -5 -5 -5 -5 -4 -4 -4 -4 -4 -3 -3 -3 -2 -2 -2 -2 -1 -1 -------- Run | Yrd Mat Min Mat Min Mat Gar Mat Gar Fac Gar Fac Low Low Zio Pro Fac Gar Fac Upp Upp Zhi Pro Fac Upp Upp War Pro Res Tes Res Qua Sec Gar Acc Com Total Allies 38 | . . . 3 3 1 . 1 . 1 8 . . . 6 . 1 3 1 3 . . 1 4 . . . . . 1 . . 1 . . . Largest Group 6 | . . . 2 4 4 . 1 . 1 6 . . . 6 6 1 3 1 3 . . . 2 . . . . . 1 . . 1 . . . Highest-Rated Group 186 | . . . 20 50 50 . 10 . 26 186 . . . 146 146 12 60 12 90 . . . 47 . . . . . 26 . . 26 . . . Highest-Rated Ally 47 | . . . 10 16 16 . 10 . 26 32 . . . 31 31 12 20 12 30 . . . 47 . . . . . 26 . . 26 . . . Initial Warlord ECA Mod 34 | . . . . . . . 12 12 12 12 21 21 21 21 20 20 20 29 29 29 29 28 28 28 28 28 27 27 27 26 26 26 26 34 34 Total Orders 64 | . . . 8 . . . . . 1 . . . . . . 14 . 6 . . . . 11 . . . . 3 4 2 9 3 2 1 . STAY 5 | . . . 4 . . . . . 1 . . . . . . . . . . . . . . . . . . . . . . . . . . ROAM 2 | . . . . . . . . . . . . . . . . 1 . . . . . . 1 . . . . . . . . . . . . FOLLOW 4 | . . . 4 . . . . . . . . . . . . . . . . . . . . . . . . . . . . . . . . RETURN 53 | . . . . . . . . . . . . . . . . 13 . 6 . . . . 10 . . . . 3 4 2 9 3 2 1 . Ally Attacks 172 | . . . . . 59 . . . . 49 . . . . 26 4 12 7 15 . . . . . . . . . . . . . . . . Total Damage 3458 | . . . . . 631 . . . . 1581 . . . . 517 28 184 44 473 . . . . . . . . . . . . . . . . Kills 30 | . . . . . 8 . . . . 15 . . . . 2 1 3 . 1 . . . . . . . . . . . . . . . . Allies Corrupted 1 | . . . 1 . . . . . . . . . . . . . . . . . . . . . . . . . . . . . . . . Allies Melted 4 | . . . . . . . . . . . . . . . 1 . . . . . . 1 . . . . . . . 2 . . . . . Intel | -11 -10 -10 -9 -9 -8 -8 -8 -8 -7 -7 -7 -7 -7 -7 -6 -6 -6 -5 -5 -5 -5 -4 -4 -4 -4 -4 -3 -3 -3 -2 -2 -2 -2 -1 -1 ------- Run | Yrd Mat Min Mat Min Mat Gar Mat Gar Fac Gar Fac Low Low Zio Pro Fac Gar Fac Upp Upp Zhi Pro Fac Upp Upp War Pro Res Tes Res Qua Sec Gar Acc Com Active Infowar (turns) 19935 | 6 769 58 1124 . 1884 1232 1084 119 798 801 668 209 112 285 143 1059 1208 525 123 71 44 712 394 52 62 144 15 143 231 1066 966 549 1218 1537 524 Optics 19397 | . 237 58 1124 . 1884 1232 1084 119 798 801 668 209 112 285 143 1059 1208 525 123 71 44 712 394 52 62 144 15 143 231 1066 966 549 1218 1537 524 Sensors 1 | . . . . . . . . . . . . . . . . 1 . . . . . . . . . . . . . . . . . . . Traps 2 | . . . . . . . . . . . . . . . . . . . 2 . . . . . . . . . . . . . . . . Seismic 538 | 6 532 . . . . . . . . . . . . . . . . . . . . . . . . . . . . . . . . . . T.N.C. 2 | . . . . . . . . . . . . . . . . . . . . . . 2 . . . . . . . . . . . . . Triangulation 2 | . . . . . . . . . . . . . . . . 2 . . . . . . . . . . . . . . . . . . . Robot Analysis Total 7 | . . . 2 . . . . . 1 . . . . . . . . . . . 4 . . . . . . . . . . . . . . Derelict Logs Recovered 13 | . . . . 1 . . . . . . . 3 . 1 1 . . . 1 3 . 1 . 1 1 . . . . . . . . . . Drone Launches 53 | . . . . . . . . . . . . . . . . 13 . 6 . . . . 10 . . . . 3 4 2 9 3 2 1 . Drone Recoveries 53 | . . . . . . . . . . . . . . . . 13 . 6 . . . . 10 . . . . 3 4 2 9 3 2 1 . Exploration | -11 -10 -10 -9 -9 -8 -8 -8 -8 -7 -7 -7 -7 -7 -7 -6 -6 -6 -5 -5 -5 -5 -4 -4 -4 -4 -4 -3 -3 -3 -2 -2 -2 -2 -1 -1 ------------- Run | Yrd Mat Min Mat Min Mat Gar Mat Gar Fac Gar Fac Low Low Zio Pro Fac Gar Fac Upp Upp Zhi Pro Fac Upp Upp War Pro Res Tes Res Qua Sec Gar Acc Com Turns Passed 21892 | 59 993 58 1124 96 3468 1232 1084 119 798 801 668 209 112 285 143 1059 1208 525 123 71 44 712 394 52 62 144 15 143 231 1066 966 549 1218 1537 524 Spaces Moved 46738 | 42 1085 72 1862 249 4521 1612 1768 228 1569 1331 1808 717 311 686 401 3019 1494 1747 406 361 148 1199 1465 216 334 853 137 612 924 3808 2715 1783 1792 4036 1427 Core 355 | 42 312 . . . . . . . . . . . . . . . . . . . . . . . . 1 . . . . . . . . . Treads . | . . . . . . . . . . . . . . . . . . . . . . . . . . . . . . . . . . . . Legs . | . . . . . . . . . . . . . . . . . . . . . . . . . . . . . . . . . . . . Wheels . | . . . . . . . . . . . . . . . . . . . . . . . . . . . . . . . . . . . . Hover . | . . . . . . . . . . . . . . . . . . . . . . . . . . . . . . . . . . . . Flight 46383 | . 773 72 1862 249 4521 1612 1768 228 1569 1331 1808 717 311 686 401 3019 1494 1747 406 361 148 1199 1465 216 334 852 137 612 924 3808 2715 1783 1792 4036 1427 Fastest Speed 5 | 50 37 37 26 28 20 23 25 25 20 20 6 20 23 20 23 7 5 10 5 6 10 10 10 5 5 5 10 10 5 10 7 8 10 9 8 Average Speed 17 | 50 40 37 30 28 24 24 25 25 23 20 21 22 23 22 23 17 17 13 13 13 11 12 10 9 9 10 10 10 9 10 10 9 10 10 15 Slowest Speed 300 | 50 100 37 120 28 110 27 28 25 25 20 29 24 23 23 23 23 20 17 14 14 14 16 12 10 10 300 10 10 10 10 17 10 10 82 55 Overloaded Moves 180 | . . . . . 35 . . . . . 8 . . . . 5 12 . 13 12 . . . 9 5 12 . . 4 . 9 21 . 22 13 Propulsion Burnouts . | . . . . . . . . . . . . . . . . . . . . . . . . . . . . . . . . . . . . Robots Hopped 217 | . . 3 7 7 12 . 1 . 5 . 5 . 1 . . 21 . 7 . 1 . . 9 1 1 2 . 1 19 22 4 28 . 47 13 Potential Cave-ins 6 | . . . . . . . . . . . . . . . . . . . . . . . . . . . . . . . . . . 2 4 Cave-ins Triggered 1 | . . . . . . . . . . . . . . . . . . . . . . . . . . . . . . . . . . . 1 Exploration Rate (%) 66 | 3 98 21 82 55 95 93 89 48 34 91 58 88 48 84 60 77 66 54 70 70 57 67 47 41 52 94 44 23 92 85 99 83 83 77 53 Regions Visited 35 Branch Regions 18 Pre-discovered Areas 13 | . . . 1 . 1 . 2 . 2 . 1 2 . . . . . . . . 3 . . . 1 . . . . . . . . . . Known Exits Taken 20 | . . . 1 1 1 . 1 . 1 . 1 1 1 . 1 1 . 1 1 . . . 1 1 1 . 1 1 1 1 . 1 . . . Unknown Exits Taken 10 | 1 1 1 . . . . . . . . . . . 1 . . . . . 1 1 1 . . . 1 . . . . 1 . . 1 . Scrap Searched 23 | . . 1 . 1 . . . . . . . 2 7 2 1 . . . 1 3 . 1 . 2 1 . 1 . . . . . . . . Spaces Dug 444 | . 2 . 5 . 79 7 20 5 10 15 26 3 13 . 1 57 13 19 2 . . 18 7 5 3 . . 3 9 18 19 16 24 42 3 Terrain Destroyed 2205 | . 2 . 15 . 140 100 62 5 32 124 26 14 13 . 1 211 120 19 2 . . 18 7 5 3 . . 3 9 85 26 52 369 616 126 Melee 343 | . 2 . 5 . 78 7 14 5 10 15 26 3 13 . 1 57 13 19 2 . . 18 7 5 3 . . 3 9 17 10 . . . 1 Projectile 258 | . . . . . 27 . 27 . . 2 . . . . . 2 13 . . . . . . . . . . . . . 7 20 59 92 9 AOE 1587 | . . . 10 . 35 93 21 . 22 107 . 11 . . . 152 94 . . . . . . . . . . . . 64 . 30 309 523 116 Terrain Rammed . | . . . . . . . . . . . . . . . . . . . . . . . . . . . . . . . . . . . . Walls Destroyed . | . . . . . . . . . . . . . . . . . . . . . . . . . . . . . . . . . . . . Machines Disabled . | . . . . . . . . . . . . . . . . . . . . . . . . . . . . . . . . . . . . Actions | -11 -10 -10 -9 -9 -8 -8 -8 -8 -7 -7 -7 -7 -7 -7 -6 -6 -6 -5 -5 -5 -5 -4 -4 -4 -4 -4 -3 -3 -3 -2 -2 -2 -2 -1 -1 --------- Run | Yrd Mat Min Mat Min Mat Gar Mat Gar Fac Gar Fac Low Low Zio Pro Fac Gar Fac Upp Upp Zhi Pro Fac Upp Upp War Pro Res Tes Res Qua Sec Gar Acc Com Total 56259 | 61 1461 94 2146 267 6379 2291 2132 257 1902 1647 1963 758 324 811 419 3361 2316 1961 467 381 164 1654 1631 234 354 904 137 679 1004 4134 3159 1968 2599 4619 1621 Wait 5922 | . 232 8 82 22 1393 482 139 . 249 76 74 25 . 119 2 162 649 141 49 20 2 390 107 15 19 24 1 42 40 142 235 70 608 214 89 Move 46292 | 41 1084 66 1847 235 4497 1610 1765 227 1558 1330 1797 716 308 685 400 2980 1493 1732 405 358 147 1198 1447 213 331 849 136 609 886 3769 2706 1728 1791 3947 1401 Hop 192 | . . 2 7 6 11 . 1 . 5 . 5 . 1 . . 18 . 7 . 1 . . 8 1 1 1 . 1 18 16 4 26 . 41 11 Pick Up 68 | . 7 2 7 1 8 2 . . 3 1 6 1 . . . 6 3 1 . . . 1 2 . . . . 1 3 2 3 2 1 5 . Fast Attach 215 | 4 11 . 10 . 14 3 6 . 7 2 9 1 . 1 1 3 6 3 . . 1 2 5 . . 11 . 1 2 12 13 12 2 43 30 Attach 49 | . 2 . 8 1 4 1 1 . . 1 1 1 . . . 3 . 1 . . . 1 2 . . 1 . 1 . 2 1 2 1 7 7 Detach 28 | . 1 . 1 . 3 1 . . . . 2 1 . . . 1 . . . . . 1 1 . . 1 . . . 1 . 1 . 6 7 Swap 449 | . 28 5 25 1 36 11 12 . 9 17 4 6 1 5 1 58 19 17 3 2 9 4 24 . . 4 . 10 12 16 36 27 15 30 2 Drop 246 | . 7 6 20 1 18 5 8 . 6 4 10 3 1 1 . 17 14 7 . . 2 5 6 . . 12 . 4 6 9 16 6 2 43 7 Fire 1624 | 16 69 5 104 . 263 87 131 2 47 62 . 1 . . . 17 59 . . . . 2 3 . . 1 . . . 102 99 88 165 262 39 Melee 840 | . 20 . 35 . 132 17 69 15 18 53 55 3 13 . 15 85 42 30 3 . 3 50 26 5 3 . . 5 18 63 26 . . 16 20 Ram . | . . . . . . . . . . . . . . . . . . . . . . . . . . . . . . . . . . . . Kick . | . . . . . . . . . . . . . . . . . . . . . . . . . . . . . . . . . . . . Crush . | . . . . . . . . . . . . . . . . . . . . . . . . . . . . . . . . . . . . Escape Stasis 193 | . . . . . . 72 . 13 . 34 . . . . . 1 . . . . . . . . . . . 5 19 . 20 6 14 5 4 Rewire 121 | . . . . . . . . . . 67 . . . . . 10 11 22 7 . . . . . . . . . . . . . . . 4 Trap 20 | . . . . . . . . . . . . . . . . . 20 . . . . . . . . . . . . . . . . . . Miscellaneous . | . . . . . . . . . . . . . . . . . . . . . . . . . . . . . . . . . . . . Route ------- -11/Scrapyard -10/Materials (discovered 6 exits: *Mat x3 / [*Min x2] / Sub) -10/Mines (discovered 2 exits: *Mat / Sub) -9/Materials (discovered 4 exits: *Mat x3 / *Min) -9/Mines (discovered 2 exits: *Mat / *Zio) -8/Materials (discovered 4 exits: *Fac x3 / Gar) -8/Garrison (discovered 3 exits: *Mat x3) -8/Materials (discovered 3 exits: *Fac x2 / Gar) -8/Garrison -7/Factory (discovered 7 exits: *Fac x2 / *Sto x2 / *Low x2 / Gar) -7/Garrison (discovered 3 exits: *Fac x3) -7/Factory (discovered 6 exits: *Fac x3 / Sto / *Low x2) -7/Lower Caves -7/Lower Caves (discovered 2 exits: Fac / *Zio) -7/Zion -6/Proximity Caves -6/Factory (discovered 7 exits: *Fac x4 / *Low x2 / Gar) -6/Garrison (discovered 3 exits: *Fac x3) -5/Factory (discovered 2 exits: *Upp x2) -5/Upper Caves -5/Upper Caves -5/Zhirov -4/Proximity Caves -4/Factory (discovered 8 exits: *Res x4 / *Upp x2 / Ext x2) -4/Upper Caves -4/Upper Caves -4/Warlord -3/Proximity Caves -3/Research (discovered 6 exits: Res x3 / Arm / *Tes x2) -3/Testing -2/Research (discovered 4 exits: *Acc x3 / *Qua) -2/Quarantine (discovered 3 exits: *Acc / *Sec / [*Frg]) -2/Section 7 (discovered 2 exits: Acc / Gar) -2/Garrison (discovered 3 exits: *Acc x3) -1/Access -1/Command To Epsilon Eridani History --------- Turn | Location | Event 8 | -11/Scrapyard | Discovered new exit (range 16) 60 | -11/Scrapyard | Entered Materials 131 | -10/Materials | Discovered new exit (range 9) 165 | -10/Materials | Discovered new exit (range 8) 257 | -10/Materials | Discovered new exit (range 14) 299 | -10/Materials | Discovered new exit (range 16) 542 | -10/Materials | Repaired Flight Unit 560 | -10/Materials | Derelicts attacked the area 584 | -10/Materials | Build established: Scavenger-Mutant 749 | -10/Materials | Discovered new exit (range 8) 819 | -10/Materials | Identified exit to Subcaves 950 | -10/Materials | Learned Storage trap positions 1012 | -10/Materials | Learned location of 1 exit from Storage 1049 | -10/Materials | Learned location of 1 exit from Storage 1053 | -10/Materials | Entered Mines 1107 | -10/Mines | Discovered new exit (range 11) 1111 | -10/Mines | Entered Materials 1111 | -9/Materials | Evolved 2 slots: Propulsion x2 1112 | -9/Materials | Identified exit to Mines 1389 | -9/Materials | Build established: Scavenger-Sprinter 1779 | -9/Materials | Lost 3 parts (1p2n) 1816 | -9/Materials | Discovered new exit (range 3) 1880 | -9/Materials | Learned location of 1 exit from Storage 1886 | -9/Materials | Core integrity fell below 50% 1930 | -9/Materials | Learned Storage trap positions 2004 | -9/Materials | Identified exit to Materials 2025 | -9/Materials | Learned 2 Storage zone layouts 2036 | -9/Materials | Learned Storage stockpile data 2061 | -9/Materials | Learned location of Zion (-7) 2088 | -9/Materials | Learned location of 1 exit from Recycling 2125 | -9/Materials | Learned Materials security intel 2137 | -9/Materials | Central database locked down 2235 | -9/Materials | Entered Mines 2235 | -9/Mines | Accompanied by 1 ally 2236 | -9/Mines | A Derelict revealed a hidden shortcut to a safe place 2245 | -9/Mines | Met a Derelict who couldn't figure out how to use a Trap Extractor 2268 | -9/Mines | Discovered exit to Materials (range 14) 2268 | -9/Mines | Assisted by bots powering up and referring to "LRC-V3" 2272 | -9/Mines | Learned 8 Materials zone layouts 2294 | -9/Mines | Assembled infested the area 2331 | -9/Mines | Entered Materials 2331 | -8/Materials | Accompanied by 4 allies 2331 | -8/Materials | Evolved 2 slots: Propulsion x1, Utility x1 2332 | -8/Materials | Identified exit to Factory 2600 | -8/Materials | Learned 4 Recycling zone layouts 2618 | -8/Materials | Garrison activated, responded to threat 2645 | -8/Materials | Learned Storage trap positions 2654 | -8/Materials | Build established: Hacker-Sprinter 2679 | -8/Materials | Learned Storage trap positions 2702 | -8/Materials | Learned Storage emergency access door positions 2716 | -8/Materials | Learned location of 1 exit from Storage 2722 | -8/Materials | Learned location of 1 exit from Extension 2727 | -8/Materials | Learned 8 Factory zone layouts 2802 | -8/Materials | Identified exit to Garrison 2860 | -8/Materials | Repaired Imp. Cooling System? 2902 | -8/Materials | Repaired Surge Thruster+ 3354 | -8/Materials | Learned 8 Factory zone layouts 3728 | -8/Materials | Repaired Broken Imp. Flight Unit 3909 | -8/Materials | Build established: Scientist-Sprinter 4331 | -8/Materials | First assault squad dispatched 5509 | -8/Materials | Sterilization system engaged 5509 | -8/Materials | Non-combat units ordered to evacuate 5609 | -8/Materials | Combat units ordered to evacuate 5799 | -8/Materials | Entered Garrison 5802 | -8/Garrison | Garrison Relay disabled 5853 | -8/Garrison | Garrison Relay disabled 5869 | -8/Garrison | Triggered checkpoint 5884 | -8/Garrison | Discovered new exit (range 12) 5890 | -8/Garrison | Garrison Relay disabled 6033 | -8/Garrison | Garrison Relay disabled 6042 | -8/Garrison | Discovered new exit (range 13) 6096 | -8/Garrison | Discovered new exit (range 13) 6133 | -8/Garrison | Triggered checkpoint 6146 | -8/Garrison | Core integrity fell below 50% 6191 | -8/Garrison | Garrison Relay disabled 6445 | -8/Garrison | Phase Generator disabled 6513 | -8/Garrison | Build established: Scavenger-Sprinter 6887 | -8/Garrison | Build established: Scientist-Sprinter 7008 | -8/Garrison | Attempted to access garrison exit controls, blocked by remote lockdown 7031 | -8/Garrison | Entered Materials 7152 | -8/Materials | Discovered exit to Factory (range 3) 7303 | -8/Materials | Identified exit to Garrison 7377 | -8/Materials | Learned location of 2 exits from Lower Caves 7408 | -8/Materials | Learned Factory emergency access door positions 7439 | -8/Materials | Learned location of 3 exits from Factory 7443 | -8/Materials | Learned location of 1 exit from Extension 7444 | -8/Materials | Learned Storage terminal intel 7445 | -8/Materials | Learned location of 1 exit from Storage 7451 | -8/Materials | Learned location of Lower Caves (-7) 7494 | -8/Materials | Learned Storage emergency access door positions 7751 | -8/Materials | Discovered exit to Factory (range 6) 7804 | -8/Materials | Repaired Surge Thruster+ 8082 | -8/Materials | Repaired Imp. Propulsion Shielding 8115 | -8/Materials | Entered Garrison 8130 | -8/Garrison | Garrison Relay disabled 8215 | -8/Garrison | Discovered exit to Factory (range 10) 8223 | -8/Garrison | Triggered checkpoint 8234 | -8/Garrison | Entered Factory 8234 | -7/Factory | Evolved 2 slots: Propulsion x1, Utility x1 8235 | -7/Factory | Identified exit to Storage 8236 | -7/Factory | Identified exit to Lower Caves 8236 | -7/Factory | Identified exit to Factory 8291 | -7/Factory | Watched by a mysterious "MATRIX" hacker 8552 | -7/Factory | Repaired Imp. Light Armor Plating 8639 | -7/Factory | Discovered exit to Factory (range 13) 8681 | -7/Factory | Learned Hub_04(d) security intel 8803 | -7/Factory | Fabricated Surge Thruster (x2) 8867 | -7/Factory | Learned location of Extension (-4) 8873 | -7/Factory | Repaired Imp. Propulsion Shielding 8910 | -7/Factory | Learned Extension trap positions 8913 | -7/Factory | Repaired Imp. Heat Sink 8953 | -7/Factory | Repaired Assault Cannon+ 9020 | -7/Factory | Identified exit to Garrison 9032 | -7/Factory | Entered Garrison 9122 | -7/Garrison | Garrison Relay disabled 9128 | -7/Garrison | Triggered checkpoint 9238 | -7/Garrison | Triggered checkpoint 9250 | -7/Garrison | Garrison Relay disabled 9259 | -7/Garrison | Triggered checkpoint 9393 | -7/Garrison | Discovered new exit (range 8) 9398 | -7/Garrison | Garrison Relay disabled 9409 | -7/Garrison | Garrison Relay disabled 9456 | -7/Garrison | Triggered checkpoint 9465 | -7/Garrison | Triggered checkpoint 9540 | -7/Garrison | Garrison Relay disabled 9542 | -7/Garrison | Triggered checkpoint 9576 | -7/Garrison | Phase Generator disabled 9576 | -7/Garrison | Discovered new exit (range 10) 9580 | -7/Garrison | Garrison Relay disabled 9614 | -7/Garrison | Triggered checkpoint 9654 | -7/Garrison | Triggered checkpoint 9714 | -7/Garrison | Discovered new exit (range 13) 9796 | -7/Garrison | Lost 3 allies 9833 | -7/Garrison | Entered Factory 9882 | -7/Factory | Build established: Sprinter 10002 | -7/Factory | Hacking Suite fried by hacking feedback 10056 | -7/Factory | Discovered exit to Lower Caves (range 17) 10129 | -7/Factory | Discovered exit to Factory (range 20) 10136 | -7/Factory | Lost 3 parts (3n) 10182 | -7/Factory | Discovered exit to Factory (range 9) 10223 | -7/Factory | Noticed a derelict Sapper rigging charges 10235 | -7/Factory | Learned 2 Extension zone layouts 10261 | -7/Factory | Central database locked down 10277 | -7/Factory | Learned 2 Lower Caves zone layouts 10280 | -7/Factory | Fabricated Imp. Propulsion Shielding (x2) 10307 | -7/Factory | Learned location of 1 exit from Proximity Caves 10317 | -7/Factory | Fabricated Surge Thruster (x2) 10329 | -7/Factory | Learned location of 1 exit from Extension 10342 | -7/Factory | Learned 2 Proximity Caves zone layouts 10440 | -7/Factory | Repaired Surge Thruster+ 10501 | -7/Factory | Entered Lower Caves 10502 | -7/Lower Caves | Identified exit to Lower Caves 10507 | -7/Lower Caves | Met a Warlord Commander 10508 | -7/Lower Caves | Learned location of Warlord (-4) 10509 | -7/Lower Caves | Warlord Commander delivered Encrypted Comm Array 10512 | -7/Lower Caves | Found Encrypted Comm Array 10546 | -7/Lower Caves | Encountered a Warlord checkpoint 10586 | -7/Lower Caves | Spotted B-75 Beast 10599 | -7/Lower Caves | Build established: Scientist-Sprinter 10614 | -7/Lower Caves | Learned Factory stockpile data 10710 | -7/Lower Caves | Entered another Lower Caves area 10711 | -7/Lower Caves | Identified exit to Zion 10761 | -7/Lower Caves | Encountered a Warlord checkpoint 10822 | -7/Lower Caves | Entered Zion 10828 | -7/Zion | Gained Derelict followers 10838 | -7/Zion | Discovered new exit (range 13) 10865 | -7/Zion | Visited the Megawrench Repair Shop 10874 | -7/Zion | Given the Hacking Drone Bay 10902 | -7/Zion | Learned Factory stockpile data 10911 | -7/Zion | Met Imprinter 10952 | -7/Zion | Found Prototype Device 10952 | -7/Zion | Identified Hacking Drone Bay 10964 | -7/Zion | Megawrench repaired 8 parts 11107 | -7/Zion | Entered Proximity Caves 11107 | -6/Proximity Caves | Accompanied by 6 allies 11110 | -6/Proximity Caves | Spotter reported a threat 11123 | -6/Proximity Caves | Learned Factory emergency access door positions 11187 | -6/Proximity Caves | Spotter reported a threat 11217 | -6/Proximity Caves | Lost 5 allies 11245 | -6/Proximity Caves | Found Alien Artifact 11245 | -6/Proximity Caves | Identified Dimensional Node Initializer 11245 | -6/Proximity Caves | Initialized slip node 11250 | -6/Proximity Caves | Entered Factory 11250 | -6/Factory | Evolved 2 slots: Power x1, Propulsion x1 11251 | -6/Factory | Identified exit to Lower Caves 11362 | -6/Factory | Identified exit to Garrison 11377 | -6/Factory | Garrison activated, responded to threat 11447 | -6/Factory | Identified exit to Factory 11600 | -6/Factory | Search patrols dispatched 11783 | -6/Factory | Spotted B-75 Beast 12141 | -6/Factory | Fabricated Imp. Propulsion Shielding (x2) 12300 | -6/Factory | Search patrols dispatched 12309 | -6/Factory | Identified exit to Garrison 12309 | -6/Factory | Entered Garrison 12337 | -6/Garrison | Discovered exit to Factory (range 66) 12337 | -6/Garrison | Discovered exit to Factory (range 79) 12337 | -6/Garrison | Discovered exit to Factory (range 53) 12402 | -6/Garrison | Garrison Relay disabled 12410 | -6/Garrison | Triggered checkpoint 12437 | -6/Garrison | Phase Generator disabled 12455 | -6/Garrison | Build established: Machinist-Sprinter 12467 | -6/Garrison | Triggered checkpoint 12467 | -6/Garrison | Garrison Relay disabled 12525 | -6/Garrison | Garrison Relay disabled 12530 | -6/Garrison | Spotted B-75 Beast 12536 | -6/Garrison | Garrison Relay disabled 12585 | -6/Garrison | Triggered checkpoint 12705 | -6/Garrison | Triggered checkpoint 12705 | -6/Garrison | Triggered checkpoint 12771 | -6/Garrison | Triggered checkpoint 12875 | -6/Garrison | Build established: Sprinter 12916 | -6/Garrison | Destroyed B-75 Beast 12921 | -6/Garrison | Spotted B-75 Beast 12973 | -6/Garrison | Triggered checkpoint 12981 | -6/Garrison | Garrison Relay disabled 13517 | -6/Garrison | Entered Factory 13517 | -5/Factory | Evolved 2 slots: Propulsion x2 13518 | -5/Factory | Identified exit to Upper Caves 13691 | -5/Factory | Fabricated Imp. Surge Thruster (x2) 13874 | -5/Factory | Repaired Imp. Propulsion Shielding 13954 | -5/Factory | Spotted B-75 Beast 14042 | -5/Factory | Entered Upper Caves 14043 | -5/Upper Caves | Identified exit to Upper Caves 14046 | -5/Upper Caves | Attacked by a delusional Derelict stockpiling Unaware 14086 | -5/Upper Caves | Spotted B-75 Beast 14154 | -5/Upper Caves | Lost 3 allies 14165 | -5/Upper Caves | Entered another Upper Caves area 14177 | -5/Upper Caves | Learned Factory stockpile data 14193 | -5/Upper Caves | Encountered a Warlord checkpoint 14207 | -5/Upper Caves | Build established: Machinist-Sprinter 14209 | -5/Upper Caves | Learned Factory emergency access door positions 14219 | -5/Upper Caves | Learned Factory stockpile data 14231 | -5/Upper Caves | Discovered new exit (range 15) 14236 | -5/Upper Caves | Lost 3 allies 14236 | -5/Upper Caves | Entered Zhirov 14236 | -5/Zhirov | Discovered new exit (range 3) 14239 | -5/Zhirov | Met Zhirov 14242 | -5/Zhirov | Learned location of Testing (-3) 14242 | -5/Zhirov | Learned location of Command (-1) 14243 | -5/Zhirov | Zhirov requested help retrieving the SGEMP Prototype 14245 | -5/Zhirov | Found Alien Artifact 14245 | -5/Zhirov | Identified Integrated Dissipator 14245 | -5/Zhirov | Installed Integrated Dissipator, increased core heat dissipation (+20) 14280 | -5/Zhirov | Entered Proximity Caves 14281 | -4/Proximity Caves | Greeted by an Infiltrator in a former 0b10 base 14288 | -4/Proximity Caves | Former 0b10 base attacked by MAIN.C 14316 | -4/Proximity Caves | Repaired Imp. Propulsion Shielding 14554 | -4/Proximity Caves | Build established: Sprinter 14680 | -4/Proximity Caves | 0b10 base defense nominally successful 14684 | -4/Proximity Caves | Spotted B-86 Titan 14972 | -4/Proximity Caves | Learned location of 1 exit from Research 14980 | -4/Proximity Caves | Discovered new exit (range 22) 14992 | -4/Proximity Caves | Entered Factory 14992 | -4/Factory | Evolved 2 slots: Power x1, Weapon x1 14993 | -4/Factory | Identified exit to Upper Caves 14993 | -4/Factory | Identified exit to Extension 15010 | -4/Factory | Identified exit to Research 15031 | -4/Factory | Targeted by mysterious "MATRIX" hacker 15227 | -4/Factory | Fabricated Exp. Heat Sink (x1) 15238 | -4/Factory | Spotted B-86 Titan 15375 | -4/Factory | Found Prototype Processor 15375 | -4/Factory | Identified Exp. Terrain Scan Processor 15386 | -4/Factory | Entered Upper Caves 15387 | -4/Upper Caves | Identified exit to Upper Caves 15393 | -4/Upper Caves | Spotted B-86 Titan 15394 | -4/Upper Caves | Learned 12 Research zone layouts 15438 | -4/Upper Caves | Entered another Upper Caves area 15439 | -4/Upper Caves | Identified exit to Warlord 15500 | -4/Upper Caves | Entered Warlord 15504 | -4/Warlord | System corruption cleaned by Quarantine Array 15528 | -4/Warlord | Visited the Vortex Lab 15528 | -4/Warlord | Found Prototype Energy Gun 15528 | -4/Warlord | Identified Vortex Shotgun 15531 | -4/Warlord | Found Prototype Energy Gun 15531 | -4/Warlord | Identified Vortex Rifle 15533 | -4/Warlord | Found Prototype Launcher 15533 | -4/Warlord | Identified Vortex Catalyst Activator 15545 | -4/Warlord | Received a Watcher feed algorithm from an ecstatic Tinkerer 15552 | -4/Warlord | Warlord's base attacked by MAIN.C 15557 | -4/Warlord | Met Warlord 15566 | -4/Warlord | Found Prototype Reactor 15566 | -4/Warlord | Identified Vortex Chain Reactor 15569 | -4/Warlord | Found Prototype Device 15569 | -4/Warlord | Identified Thermal Barrier 15570 | -4/Warlord | Found Prototype Processor 15570 | -4/Warlord | Identified Spectral Analyzer 15626 | -4/Warlord | Opened side exit 15644 | -4/Warlord | Discovered new exit (range 8) 15644 | -4/Warlord | Entered Proximity Caves 15658 | -3/Proximity Caves | Discovered exit to Research (range 13) 15659 | -3/Proximity Caves | Entered Research 15659 | -3/Research | Evolved 2 slots: Propulsion x1, Weapon x1 15660 | -3/Research | Identified exit to Research 15676 | -3/Research | Identified exit to Armory 15676 | -3/Research | Identified exit to Testing 15802 | -3/Research | Entered Testing 15821 | -3/Testing | Found Prototype Hackware 15890 | -3/Testing | Spotted Striker 15890 | -3/Testing | Spotted Striker 15900 | -3/Testing | Found Prototype Energy Cannon 15900 | -3/Testing | Identified Potential Cannon 15923 | -3/Testing | Build established: Machinist-Sprinter 15932 | -3/Testing | Discovered exit to Research (range 8) 16019 | -3/Testing | Found Prototype Launcher 16019 | -3/Testing | Identified Z-bomb Delivery System 16033 | -3/Testing | Entered Research 16033 | -2/Research | Warlord forces began assault on 0b10 16033 | -2/Research | Evolved 2 slots: Propulsion x2 16058 | -2/Research | Distinguished unit "Knights of the Pentagonal Table" dispatched to help 16058 | -2/Research | Distinguished unit "Lucky Slug" dispatched to help 16143 | -2/Research | Research machine network offline 16193 | -2/Research | Met up with Warlord 16262 | -2/Research | Discovered new exit (range 6) 16280 | -2/Research | Discovered new exit (range 14) 16457 | -2/Research | Spotted B-90 Cyclops 16506 | -2/Research | Spotted Executioner 16521 | -2/Research | Spotted Executioner 16544 | -2/Research | Discovered new exit (range 12) 16561 | -2/Research | Discovered new exit (range 5) 16625 | -2/Research | Found Unknown Device 16625 | -2/Research | Identified Adv. Force Booster 16698 | -2/Research | Spotted B-90 Cyclops 16749 | -2/Research | Identified System Mapper 16830 | -2/Research | Build established: Sprinter 16871 | -2/Research | Identified exit to Access 16886 | -2/Research | Spotted Striker 16887 | -2/Research | Spotted Striker 16913 | -2/Research | Spotted Executioner 16929 | -2/Research | Borebot progress halted 16942 | -2/Research | Met DD-05H 16954 | -2/Research | Found Warlord Statue 16988 | -2/Research | Met PL-HR7 16992 | -2/Research | Identified exit to Quarantine 17070 | -2/Research | Warlord invited to help at Command 17070 | -2/Research | Given Cave Seal Controls access code 17087 | -2/Research | Spotted Striker 17099 | -2/Research | Entered Quarantine 17118 | -2/Quarantine | Found Alien Artifact 17121 | -2/Quarantine | Cryocooling Duct disabled 17136 | -2/Quarantine | Ambient heat levels rising (+20) 17136 | -2/Quarantine | Non-combat units ordered to evacuate 17156 | -2/Quarantine | Discovered exit to Access (range 23) 17157 | -2/Quarantine | Cryocooling Duct disabled 17172 | -2/Quarantine | Ambient heat levels rising (+20) 17172 | -2/Quarantine | Combat units ordered to evacuate 17272 | -2/Quarantine | Quarantine Guard activated 17280 | -2/Quarantine | Found Alien Artifact 17286 | -2/Quarantine | Identified Core Reset Matrix 17286 | -2/Quarantine | Identified Subatomic Replicator 17306 | -2/Quarantine | Spotted Quarantine Guard 17310 | -2/Quarantine | Found Alien Reactor 17316 | -2/Quarantine | Spotted Quarantine Guard 17341 | -2/Quarantine | Destroyed Quarantine Guard 17345 | -2/Quarantine | Destroyed Quarantine Guard 17346 | -2/Quarantine | Spotted Quarantine Guard 17357 | -2/Quarantine | Spotted Quarantine Guard 17378 | -2/Quarantine | Destroyed Quarantine Guard 17389 | -2/Quarantine | Spotted Quarantine Guard 17452 | -2/Quarantine | Destroyed Quarantine Guard 17466 | -2/Quarantine | Spotted Quarantine Guard 17470 | -2/Quarantine | Spotted Quarantine Guard 17471 | -2/Quarantine | Spotted Quarantine Guard 17631 | -2/Quarantine | Destroyed Quarantine Guard 17694 | -2/Quarantine | Destroyed Quarantine Guard 17754 | -2/Quarantine | Destroyed Quarantine Guard 17777 | -2/Quarantine | Spotted Quarantine Guard 17797 | -2/Quarantine | Spotted Quarantine Guard 17809 | -2/Quarantine | Destroyed Quarantine Guard 17984 | -2/Quarantine | Met incapacitated Sigix Warrior 17984 | -2/Quarantine | Lockdown squad dispatched 17989 | -2/Quarantine | Spotted Lightning 17995 | -2/Quarantine | Spotted Lightning 18028 | -2/Quarantine | Spotted Lightning 18037 | -2/Quarantine | Spotted Quarantine Guard 18055 | -2/Quarantine | Spotted Fortress 18065 | -2/Quarantine | Discovered new exit (range 6) 18065 | -2/Quarantine | Discovered new exit (range 7) 18065 | -2/Quarantine | Entered Section 7 18070 | -2/Section 7 | Spotted B-90 Cyclops 18076 | -2/Section 7 | Found Alien Artifact 18076 | -2/Section 7 | Identified Integrated Mediator 18076 | -2/Section 7 | Installed Integrated Mediator, increased core attachment efficiency 18394 | -2/Section 7 | Spotted CY-PHR 18410 | -2/Section 7 | Found Alien Artifact 18410 | -2/Section 7 | Identified Integrity Redistributor 18410 | -2/Section 7 | Used Integrity Redistributor, redistributed integrity from core (-97) 18420 | -2/Section 7 | Spotted Alpha 7 18450 | -2/Section 7 | Spotted S7 Guard 18455 | -2/Section 7 | Found Alien Artifact 18455 | -2/Section 7 | Identified Core Membrane 18455 | -2/Section 7 | Installed Core Membrane, gained immunity to corruption 18483 | -2/Section 7 | Identified exit to Garrison 18496 | -2/Section 7 | Spotted Executioner 18496 | -2/Section 7 | Spotted Executioner 18499 | -2/Section 7 | Spotted B-99 Colossus 18508 | -2/Section 7 | Found Integrity Redistributor 18512 | -2/Section 7 | Found Alien Artifact 18512 | -2/Section 7 | Identified LRC Energy Well 18512 | -2/Section 7 | Installed LRC Energy Well, increased energy storage capacity (+250) 18514 | -2/Section 7 | Found LRC Energy Well 18514 | -2/Section 7 | Installed LRC Energy Well, increased energy storage capacity (+250) 18516 | -2/Section 7 | Used Subatomic Replicator to replicate Alien Artifact 18517 | -2/Section 7 | Found Alien Artifact 18517 | -2/Section 7 | Identified LRC Inertial Stabilizer 18517 | -2/Section 7 | Installed LRC Inertial Stabilizer, increased mass support (+10) 18519 | -2/Section 7 | Installed LRC Inertial Stabilizer, increased mass support (+10) 18531 | -2/Section 7 | Used Integrity Redistributor, redistributed integrity from core (-18) 18537 | -2/Section 7 | Found Integrity Redistributor 18544 | -2/Section 7 | Spotted Executioner 18544 | -2/Section 7 | Spotted Executioner 18545 | -2/Section 7 | Spotted Striker 18545 | -2/Section 7 | Spotted Striker 18565 | -2/Section 7 | First assault squad dispatched 18588 | -2/Section 7 | Found Alien Energy Gun 18588 | -2/Section 7 | Identified Sigix Sheargun 18590 | -2/Section 7 | Found Sigix Sheargun 18592 | -2/Section 7 | Found Sigix Sheargun 18594 | -2/Section 7 | Spotted Striker 18594 | -2/Section 7 | Spotted Striker 18614 | -2/Section 7 | Entered Garrison 18635 | -2/Garrison | Garrison Relay disabled 18642 | -2/Garrison | Triggered checkpoint 18733 | -2/Garrison | Spotted B-90 Cyclops 18794 | -2/Garrison | Destroyed B-90 Cyclops 18797 | -2/Garrison | Used Integrity Redistributor, redistributed integrity from core (-65) 18806 | -2/Garrison | Triggered checkpoint 18821 | -2/Garrison | Triggered checkpoint 18868 | -2/Garrison | Triggered checkpoint 18897 | -2/Garrison | Destroyed 16 combat bots 18953 | -2/Garrison | Triggered checkpoint 18959 | -2/Garrison | Discovered exit to Access (range 11) 18964 | -2/Garrison | Triggered checkpoint 18990 | -2/Garrison | Destroyed 8 combat bots 19046 | -2/Garrison | Triggered checkpoint 19068 | -2/Garrison | Garrison Relay disabled 19089 | -2/Garrison | Discovered exit to Access (range 8) 19150 | -2/Garrison | Garrison Relay disabled 19214 | -2/Garrison | Spotted B-86 Titan 19229 | -2/Garrison | Garrison Relay disabled 19233 | -2/Garrison | Triggered checkpoint 19269 | -2/Garrison | Build established: Scavenger-Sprinter 19832 | -2/Garrison | Entered Access 19832 | -1/Access | Evolved 2 slots: Weapon x2 19906 | -1/Access | High security lockdown imminent 19930 | -1/Access | Found Unknown Launcher 19930 | -1/Access | Identified Fusion Bomb Launcher 19933 | -1/Access | Found Fusion Bomb Launcher 19944 | -1/Access | Spotted B-99 Colossus 19958 | -1/Access | Lost 3 allies 19986 | -1/Access | High security lockdown engaged 20010 | -1/Access | Lost 3 allies 20135 | -1/Access | Lost 5 allies 20324 | -1/Access | Spotted Striker 20448 | -1/Access | Energy Cycler disabled 20543 | -1/Access | Garrison activated, responded to threat 20633 | -1/Access | Spotted Striker 20668 | -1/Access | Spotted Investigator 20670 | -1/Access | Destroyed Investigator 20688 | -1/Access | Spotted Investigator 20698 | -1/Access | Scanned by Researcher 20699 | -1/Access | Destroyed Investigator 20703 | -1/Access | Destroyed 12 combat bots 20709 | -1/Access | Spotted Striker 20709 | -1/Access | Spotted Executioner 20709 | -1/Access | Spotted Striker 20709 | -1/Access | Spotted Striker 20738 | -1/Access | Found Prototype Launcher 20738 | -1/Access | Identified Gui. Micro-nuke Launcher 20741 | -1/Access | Lost 3 parts (1p2w) 20857 | -1/Access | Destroyed 16 combat bots 20858 | -1/Access | Garrison activated, responded to threat 21018 | -1/Access | Spotted B-99 Colossus 21026 | -1/Access | Garrison activated, responded to threat 21045 | -1/Access | Discovered new exit (range 9) 21133 | -1/Access | Destroyed 10 combat bots 21188 | -1/Access | Lost 4 parts (2n1u1w) 21256 | -1/Access | Destroyed 10 combat bots 21316 | -1/Access | Spotted Executioner 21316 | -1/Access | Spotted Executioner 21316 | -1/Access | Spotted Striker 21369 | -1/Access | Entered Command 21398 | -1/Command | Lost 8 parts (4n4w) 21461 | -1/Command | Disengaged cave seal 21461 | -1/Command | Derelicts emerged from the dark tunnel 21461 | -1/Command | Welcomed Warlord to Command 21512 | -1/Command | Spotted M Guard 21514 | -1/Command | Spotted M Guard 21518 | -1/Command | Spotted Combat Programmer 21518 | -1/Command | Spotted Combat Programmer 21570 | -1/Command | High security lockdown imminent 21607 | -1/Command | All MAIN.C guards destroyed 21622 | -1/Command | Lost 9 parts (3p3n1u2w) 21636 | -1/Command | Lost 5 allies 21640 | -1/Command | Met MAIN.C 21642 | -1/Command | 0b10 Conduit disabled 21650 | -1/Command | High security lockdown engaged 21651 | -1/Command | MAIN.C activated Command garrisons 21669 | -1/Command | Found Prototype Protection 21669 | -1/Command | Identified Centrium Heavy Armor Plating 21707 | -1/Command | Warlord commented on Warlord statues 21733 | -1/Command | Identified Matter Drive 21738 | -1/Command | Spotted B-99 Colossus 21745 | -1/Command | Destroyed 24 combat bots 21750 | -1/Command | Lost 4 allies 21754 | -1/Command | Found Prototype Device 21754 | -1/Command | Identified Adv. Particle Accelerator 21756 | -1/Command | Found Prototype Reactor 21756 | -1/Command | Identified Zero-point Reactor 21759 | -1/Command | Lost 15 parts (1p6n3u5w) 21763 | -1/Command | Found Prototype Device 21763 | -1/Command | Identified Exp. Force Field 21765 | -1/Command | Found Prototype Device 21765 | -1/Command | Identified Exp. Phase Shifter 21767 | -1/Command | Found Prototype Processor 21767 | -1/Command | Identified Exp. Armor Integrity Analyzer 21824 | -1/Command | Core integrity fell below 50% 21833 | -1/Command | Spotted B-99 Colossus 21866 | -1/Command | Crushed by falling debris 21888 | -1/Command | Discovered new exit (range 7) 21893 | *** | Escaped! Last Messages --------------- 21882_ Lgt. Quantum Reactor destroyed. 21883_ C-45 Heavy ARC bursts open, deploying its payload. 21883_ S-43 Plague unfolds itself. 21883_ K-01 Serf cleans the Terminal. 21883_ C-45 Heavy ARC bursts open, deploying its payload. 21883_ S-43 Plague unfolds itself. 21884_ Slug penetrates Wall. 21884_ Slug penetrates S-43 Plague. 21884_ Slug penetrates Wall. 21885_ Quantum Router disabled. 21886_ P-80 Master resets S-43 Plague, system corruption cleaned. 21886_ Critical hit (Destroy). 21886_ Field Propulsion Array destroyed. 21888_ EXIT=FOUND 21891_ Field Propulsion Array destroyed. 21892_ Slug penetrates Wall. 21892_ Penetrated by Slug. Map ----- +----------------------------------------------------+ | ##??## #??# #????? #????# | | #????# #??# #?????######????" | | #????# #??# #??????????????#" | | #????# #??# #??????????????#" | | #????# #??# #??????????????#" | | "" #????# "" "" #??# #?##########???#" | | """" #????# ""T"" #??# #?# =#???#" | | """" +????# """ #??# ### #???#" | | "" # ???# #??# ## "" #???# | | ###??# #??# #?# """ #???# | | ###########+"######## #?# T" #???# | | "%" !!! ### """ #???#" | | " !!! # "" #???#" | | !! #?? #???# | | ] !! "##???? #???# | | ####" !! #########+###### | | ???## ! | | ????# ! """"T"""" | | ????# """"""""""" | | ????# " ############# #############""" | | ##??# "%" #???????????# #???????????## " | | #######+####" #???????????# #????????????### | | # ## #???????????# #??????????????## | | # ### #?????####### #???????????????? | | # "" "## #?????# ;; #???????????????? | | " """ ### #?????# @ ;; #???????????????? | | " "T #?# ###???# ;; #???????????????? | | # """ #?# T"#???### ## #???????????????? | | # "" #?# ""#?????#s ## #???????????????? | | # #?# ###?#####s ######???????????????? | | ## #?# "##??# ##s #????????????????????? | | "#"#+"###### "%"#### ## #????????????????????? | | % " #????????????????????? | | % +????????????????????? | | #????????????????????? | | #????????????????????? | | #????????????????????? | | "" ###############??????? | | ! """ "# #??????? | | ######## """" # #??????? | | """""""# "" # "" #??????? | | + """# !] " """" #??????? | | " ""# ]] # """" #??????? | | / """# " "" #??????? | | #""""""# # #??????? | | ######## ! # #??????? | | # #??????? | | # #??????? | | #################/"##"###" # #??????? | | "" # "##" # #??????? | +----------------------------------------------------+ Best States ------------- Heat Dissipation 176 Energy Generation 71 Energy Capacity 1180 Matter Stores 300 Matter Capacity 300 Sight Range 24 Terrain Scan Density 10 Base Temperature (-) 200 Armor Coverage 1200 Resistance: TH 50 Resistance: EM 20 Core Shielding 30 Propulsion Shielding 66 Weapon Shielding 66 Phase Shifting 20 Evasion (%) 86 Recoil Reduction 2 Offensive Hacking 20 Defensive Hacking 10 Authchip Count 1 Trap Extractor Capacity 6 Item Schematics ----------------- Surge Thruster | -9/Materials | Scanalyzed Imp. Propulsion Shielding | -8/Materials | Scanalyzed Cryofiber Web | -8/Materials | Scanalyzed Hyp. Gauss Rifle | -8/Materials | Scanalyzed Greatsword | -7/Factory | Scanalyzed Imp. System Restoration Module | -6/Factory | Scanalyzed Imp. Surge Thruster | -6/Factory | Hacked Remote Datajack | -5/Factory | Extracted Focal Shield | -5/Factory | Extracted Arm. Medium Treads | -5/Factory | Extracted Imp. Transmission Jammer | -5/Factory | Extracted Assault Drone Bay | -5/Zhirov | Free Exp. Heat Sink | -5/Zhirov | Free Exp. Optical Array | -5/Zhirov | Free Imp. Arc Thrower | -5/Zhirov | Free Cld. Antigrav System | -2/Section 7 | Archive Exp. Matter Compressor | -2/Section 7 | Archive Graviton Cannon | -2/Section 7 | Archive Diametric Drive | -2/Section 7 | Archive Enh. Armored Medium Treads | -2/Section 7 | Archive Robot Schematics ------------------ C-65 Expert | -2/Section 7 | Archive Fabricated ------------ Surge Thruster | x2 | -7/Factory Imp. Propulsion Shielding | x2 | -7/Factory | Authchip Surge Thruster | x2 | -7/Factory Imp. Propulsion Shielding | x2 | -6/Factory Imp. Surge Thruster | x2 | -5/Factory Exp. Heat Sink | x1 | -4/Factory | Authchip Repaired ---------- Flight Unit | 50% | -10/Materials Imp. Cooling System | 34% | -8/Materials Surge Thruster | 35% | -8/Materials Imp. Flight Unit | 27% | -8/Materials | Broken Surge Thruster | 2% | -8/Materials Imp. Propulsion Shielding | 29% | -8/Materials Imp. Light Armor Plating | 10% | -7/Factory Imp. Propulsion Shielding | 29% | -7/Factory Imp. Heat Sink | 12% | -7/Factory Assault Cannon | 59% | -7/Factory Surge Thruster | 30% | -7/Factory Imp. Propulsion Shielding | 43% | -5/Factory Imp. Propulsion Shielding | 10% | -4/Proximity Caves Studied --------- Flight Unit | -9/Materials | Hacked Lgt. Cannon | -9/Materials | Hacked Lgt. Ion Engine | -9/Materials | Hacked EMP Blaster | -9/Materials | Hacked Surge Thruster | -8/Materials | Hacked Cesium-ion Thruster | -8/Materials | Hacked Assault Cannon | -8/Materials | Hacked VTOL Module | -8/Materials | Hacked Lgt. Deuterium Engine | -8/Materials | Hacked Xenon Bombardment Thruster | -7/Factory | Hacked Lgt. Nuclear Core | -7/Factory | Hacked Hvy. Missile Launcher | -6/Factory | Hacked Imp. Surge Thruster | -5/Factory | Hacked Lgt. Angular Momentum Engine | -5/Factory | Hacked Nuclear Pulse Thruster | -5/Factory | Hacked Q-thruster | -3/Research | Hacked Lrn. Missile Launcher | -3/Research | Hacked Hyp. Railgun | -2/Section 7 | Hacked Alien Tech Used ----------------- Dimensional Node Initializer Integrated Dissipator Integrated Mediator Integrity Redistributor Core Membrane LRC Energy Well Subatomic Replicator LRC Inertial Stabilizer Sigix Sheargun Matter Drive Achievements -------------- None Challenges ------------ None Game ------ Seed ShieldReinforcedComputer Manual? 0 Play Time 09:00:25 Cumulative 429.9 hours Start 2026.09.17 @ 16:51:30 End 2026.09.20 @ 01:37:37 Sessions 7 Manual Loads 0 Difficulty Rogue Special Mode None Game No. 202 Rogue 202 Adventurer 0 Explorer 0 Win Type 0 Total 46 Types 24/1/9/2/5/1/1/1/0/2 Lore% 91 Gallery% 81 Achievement% 88 Wizard Run 0 Options --------- Layout 1 ASCII 0 Keyboard 0 Movement Numpad Keybinds 0 Fullscreen 1 Font 24/Smallcaps Map View 50x35 Zoom Use 0% Tactical HUD 1 Map Filters NONE Filters NONE Steam 1 RUN: a58d431b-59df-4334-93ae-182eb5064686